Workbook

Sheet 部门收支总表
A1: 2020年部门预算收支总表
A2: 填报单位：临湘市民政局机关 临湘市社会福利中心 临湘市救助站 | F2: 单位：元
A3: 收入 | C3: 支出(经济分类） | E3: 支出（功能科目）
A4: 一般预算拨款（补助） | B4: 11,227,745.31 | C4: 基本支出 | D4: =D5+D6+D7 -> 6,714,791.27 | E4: 201、一般公共服务支出 | F4: 0.00
A5: 经费拨款 | B5: 11,227,745.31 | C5: 301、工资福利支出 | D5: 5,749,271.27 | E5: 202、外交支出 | F5: 0.00
A6: 纳入预算管理的非税收入拨款 | B6: 0.00 | C6: 302、商品和服务支出 | D6: 956,400.00 | E6: 203、国防支出 | F6: 0.00
A7: 纳入专户管理的非税收入拨款 | B7: 0.00 | C7: 303、对个人和家庭的补助 | D7: 9,120.00 | E7: 204、公共安全支出 | F7: 0.00
A8: 政府性基金拨款 | B8: 0.00 | C8: 项目支出 | D8: =D9+D10 -> 5,702,954.04 | E8: 205、教育支出 | F8: 0.00
A9: 事业单位经营服务收入 | B9: 1,190,000.00 | C9: 302、商品和服务支出 | D9: 4,102,954.04 | E9: 206、科学技术支出 | F9: 0.00
A10: 上级补助收入 | B10: 0.00 | C10: 303、对个人和家庭的补助 | D10: 1,600,000.00 | E10: 207、文化体育与传媒支出 | F10: 0.00
A11: 附属单位上缴收入 | B11: 0.00 | C11: 307、债务利息及费用支出 | D11: 0.00 | E11: 208、社会保障和就业支出 | F11: 11,928,393.23
A12: 其他收入 | B12: 0.00 | C12: 309、资本性支出（基本建设） | D12: 0.00 | E12: 209、社保基金支出 | F12: 0.00
A13: 上年结转 | B13: 0.00 | C13: 310、资本性支出 | D13: 0.00 | E13: 210、医疗卫生与计划生育支出 | F13: 0.00
C14: 311、对企业补助（基本建设） | D14: 0.00 | E14: 211、节能环保支出 | F14: 0.00
C15: 312、对企业补助 | D15: 0.00 | E15: 212、城乡社区支出 | F15: 0.00
C16: 313、对社会保障金补助 | D16: 0.00 | E16: 213、农林水支出 | F16: 0.00
C17: 399、其他支出 | D17: 0.00 | E17: 214、交通运输支出 | F17: 0.00
E18: 215、资源勘探信息等支出 | F18: 0.00
E19: 216、商业服务业等支出 | F19: 0.00
E20: 217、金融支出 | F20: 0.00
E21: 219、援助其他地区支出 | F21: 0.00
E22: 220、国土海洋气象等支出 | F22: 0.00
E23: 221、住房保障支出 | F23: 489,352.08
E24: 222、粮油物资储备支出 | F24: 0.00
E25: 223、国有资本经营预算支出 | F25: 0.00
E26: 227、预备费 | F26: 0.00
E27: 229、其他支出 | F27: 0.00
E28: 230、转移性支出 | F28: 0.00
E29: 231、债务还本支出 | F29: 0.00
E30: 232、债务付息支出 | F30: 0.00
E31: 233、债务发行费用支出 | F31: 0.00
A33: 本年收入合计 | B33: =B4+B9 -> 12,417,745.31 | C33: 本年支出合计 | D33: =D4+D8 -> 12,417,745.31 | E33: 本年支出合计 | F33: =F23+F11 -> 12,417,745.31

Sheet 部门收入总表
A2: 部门收入总体情况表
A3: 单位名称：临湘市民政局机关 临湘市社会福利中心 临湘市救助站 | L3: 单位：元
A4: 单位 | C4: 总计 | D4: 一般预算拨款 | F4: 纳入专户管理的非税收入拨款 | G4: 政府性基金拨款 | H4: 事业单位经营服务收入 | I4: 上级补助收入 | J4: 附属单位上缴收入 | K4: 其他收入 | L4: 上年结转
A5: 单位代码 | B5: 单位名称 | D5: 经费拨款 | E5: 纳入预算管理的非税收入拨款
B6: 合计 | C6: =D6+H6 -> 12417745.31 | D6: 11227745.31 | E6: 0.00 | F6: 0.00 | G6: 0.00 | H6: 1,190,000.00 | I6: 0.00 | J6: 0.00 | K6: 0.00 | L6: 0.00
C7: 12417745.31 | D7: 11227745.31 | E7: 0.00 | F7: 0.00 | G7: 0.00 | H7: 1,190,000.00 | I7: 0.00 | J7: 0.00 | K7: 0.00 | L7: 0.00
A8: 503001 | B8: 临湘市民政局 | C8: 12417745.31 | D8: 11227745.31 | E8: 0.00 | F8: 0.00 | G8: 0.00 | H8: 1,190,000.00 | I8: 0.00 | J8: 0.00 | K8: 0.00 | L8: 0.00

Sheet 部门支出总表
A2: 部门支出总体情况表
A3: 单位名称：临湘市民政局机关 临湘市社会福利中心 临湘市救助站 | L3: 单位：元
A4: 功能科目 | E4: 总计 | F4: 一般预算拨款 | H4: 纳入专户管理的非税收入拨款 | I4: 政府性基金拨款 | J4: 事业单位经营服务收入 | K4: 上级补助收入 | L4: 其他收入
A5: 类 | B5: 款 | C5: 项 | D5: 科目名称 | F5: 经费拨款 | G5: 纳入预算管理的非税收入拨款
D6: 合计 | E6: =E7+E17 -> 12,417,745.31 | F6: 11,227,745.31 | G6: 0.00 | H6: 0.00 | I6: 0.00 | J6: 1,190,000.00 | K6: 0.00 | L6: 0.00
A7: 208 | E7: =E8+E12+E15 -> 11,928,393.23 | F7: 10,845,649.07 | G7: 0.00 | H7: 0.00 | I7: 0.00 | J7: 1,082,744.16 | K7: 0.00 | L7: 0.00
A8: 208 | B8: 2 | E8: =E9+E10+E11 -> 11,023,353.23 | F8: 10,098,320.75 | G8: 0.00 | H8: 0.00 | I8: 0.00 | J8: 925,032.48 | K8: 0.00 | L8: 0.00
A9: 208 | B9: 2 | C9: 1 | D9: 行政运行（民政管理事务） | E9: =F9+J9 -> 3,479,456.96 | F9: 3,026,387.00 | G9: 0.00 | H9: 0.00 | I9: 0.00 | J9: 453,069.96 | K9: 0.00 | L9: 0.00
A10: 208 | B10: 2 | C10: 2 | D10: 一般行政管理事务（民政管理事务） | E10: =F10+J10 -> 781,400.00 | F10: 701,400.00 | G10: 0.00 | H10: 0.00 | I10: 0.00 | J10: 80,000.00 | K10: 0.00 | L10: 0.00
A11: 208 | B11: 2 | C11: 99 | D11: 其他民政管理事务支出 | E11: =F11+J11 -> 6,762,496.27 | F11: 6,370,533.75 | G11: 0.00 | H11: 0.00 | I11: 0.00 | J11: 391,962.52 | K11: 0.00 | L11: 0.00
A12: 208 | B12: 5 | E12: =E13+E14 -> 705,040.00 | F12: 547,328.32 | G12: 0.00 | H12: 0.00 | I12: 0.00 | J12: 157,711.68 | K12: 0.00 | L12: 0.00
A13: 208 | B13: 5 | C13: 5 | D13: 机关事业单位基本养老保险缴费支出 | E13: =F13+J13 -> 652,469.44 | F13: 547,328.32 | G13: 0.00 | H13: 0.00 | I13: 0.00 | J13: 105,141.12 | K13: 0.00 | L13: 0.00
A14: 208 | B14: 5 | C14: 6 | D14: 机关事业单位职业年金缴费支出 | E14: =J14 -> 52,570.56 | F14: 0.00 | G14: 0.00 | H14: 0.00 | I14: 0.00 | J14: 52,570.56 | K14: 0.00 | L14: 0.00
A15: 208 | B15: 10 | E15: 200,000.00 | F15: 200,000.00 | G15: 0.00 | H15: 0.00 | I15: 0.00 | J15: 0.00 | K15: 0.00 | L15: 0.00
A16: 208 | B16: 10 | C16: 6 | D16: 养老服务 | E16: 200,000.00 | F16: 200,000.00 | G16: 0.00 | H16: 0.00 | I16: 0.00 | J16: 0.00 | K16: 0.00 | L16: 0.00
A17: 221 | E17: =F17+J17 -> 489,352.08 | F17: 382,096.24 | G17: 0.00 | H17: 0.00 | I17: 0.00 | J17: 107,255.84 | K17: 0.00 | L17: 0.00
A18: 221 | B18: 2 | E18: =F18+J18 -> 489,352.08 | F18: 382,096.24 | G18: 0.00 | H18: 0.00 | I18: 0.00 | J18: 107,255.84 | K18: 0.00 | L18: 0.00
A19: 221 | B19: 2 | C19: 1 | D19: 住房公积金 | E19: =F19+J19 -> 489,352.08 | F19: 382,096.24 | G19: 0.00 | H19: 0.00 | I19: 0.00 | J19: 107,255.84 | K19: 0.00 | L19: 0.00

Sheet 部门支出总表(分类)
A2: 部门支出总表分类
A3: 单位名称：临湘市民政局机关 临湘市社会福利中心 临湘市救助站 | R3: 单位：元
A4: 功能科目 | E4: 总计 | F4: 基本支出 | J4: 项目支出
A5: 科目编码 | D5: 科目名称 | F5: 合计 | G5: 工资福利支出 | H5: 一般商品和服务支出 | I5: 对个人和家庭的补助 | J5: 合计 | K5: 商品和服务支出 | L5: 对个人和家庭的补助支出 | M5: 基本建设 | N5: 其他资本性支出 | O5: 对企事业单位的补贴 | P5: 对社保基金的补助 | Q5: 其他支出 | R5: 债务利息及费用支出
A6: 类 | B6: 款 | C6: 项
D7: 合计 | E7: =E8+E18 -> 12417745.31 | F7: =F8+F18 -> 6714791.27 | G7: =G8+G18 -> 5749271.27 | H7: =H8+H18 -> 956400.00 | I7: =I8+I18 -> 9120.00 | J7: =J8+J15 -> 5702954.04 | K7: 4102954.04 | L7: 1600000.00 | M7: 0.00 | N7: 0.00 | O7: 0.00 | P7: 0.00 | Q7: 0.00 | R7: 0.00
A8: 208 | E8: =E9+E13+E16 -> 11928393.23 | F8: =F9+F13+F16 -> 6225439.19 | G8: =G9+G13+G16 -> 5259919.19 | H8: =H9+H13+H16 -> 956400.00 | I8: =I9+I13+I16 -> 9120.00 | J8: =J9+J16 -> 5702954.04 | K8: =K9+K16 -> 4102954.04 | L8: =L9+L16 -> 1600000.00 | M8: 0.00 | N8: 0.00 | O8: 0.00 | P8: 0.00 | Q8: 0.00 | R8: 0.00
B9: 02 | E9: =E10+E11+E12 -> 11023353.23 | F9: =F10+F11+F12 -> 5520399.19 | G9: =G10+G11+G12 -> 4554879.19 | H9: =H10+H11+H12 -> 956400.00 | I9: =I10+I11+I12 -> 9120.00 | J9: =K9+L9 -> 5502954.04 | K9: 4102954.04 | L9: 1400000.00 | M9: 0.00 | N9: 0.00 | O9: 0.00 | P9: 0.00 | Q9: 0.00 | R9: 0.00
A10: 208 | B10: 02 | C10: 01 | D10: 行政运行（民政管理事务） | E10: 3479456.96 | F10: 3479456.96 | G10: 3479456.96 | H10: 0.00 | I10: 0.00 | J10: 0.00 | K10: 0.00 | L10: 0.00 | M10: 0.00 | N10: 0.00 | O10: 0.00 | P10: 0.00 | Q10: 0.00 | R10: 0.00
A11: 208 | B11: 02 | C11: 02 | D11: 一般行政管理事务（民政管理事务） | E11: 781400.00 | F11: 781400.00 | G11: 0.00 | H11: 781400.00 | I11: 0.00 | J11: 0.00 | K11: 0.00 | L11: 0.00 | M11: 0.00 | N11: 0.00 | O11: 0.00 | P11: 0.00 | Q11: 0.00 | R11: 0.00
A12: 208 | B12: 02 | C12: 99 | D12: 其他民政管理事务支出 | E12: =F12+J12 -> 6762496.27 | F12: =G12+H12+I12 -> 1259542.23 | G12: 1075422.23 | H12: 175000.00 | I12: 9120.00 | J12: =K12+L12 -> 5502954.04 | K12: 4102954.04 | L12: 1400000.00 | M12: 0.00 | N12: 0.00 | O12: 0.00 | P12: 0.00 | Q12: 0.00 | R12: 0.00
B13: 05 | E13: =E14+E15 -> 705040.00 | F13: =F14+F15 -> 705040.00 | G13: =G14+G15 -> 705040.00 | H13: 0.00 | I13: 0.00 | J13: 0.00 | K13: 0.00 | L13: 0.00 | M13: 0.00 | N13: 0.00 | O13: 0.00 | P13: 0.00 | Q13: 0.00 | R13: 0.00
A14: 208 | B14: 05 | C14: 05 | D14: 机关事业单位基本养老保险缴费支出 | E14: 652469.44 | F14: 652469.44 | G14: 652469.44 | H14: 0.00 | I14: 0.00 | J14: 0.00 | K14: 0.00 | L14: 0.00 | M14: 0.00 | N14: 0.00 | O14: 0.00 | P14: 0.00 | Q14: 0.00 | R14: 0.00
A15: 208 | B15: 05 | C15: 06 | D15: 机关事业单位职业年金缴费支出 | E15: 52570.56 | F15: 52570.56 | G15: 52570.56 | H15: 0.00 | I15: 0.00 | J15: 0.00 | K15: 0.00 | L15: 0.00 | M15: 0.00 | N15: 0.00 | O15: 0.00 | P15: 0.00 | Q15: 0.00 | R15: 0.00
B16: 10 | E16: 200000.00 | F16: 0.00 | G16: 0.00 | H16: 0.00 | I16: 0.00 | J16: 200000.00 | K16: 0.00 | L16: 200000.00 | M16: 0.00 | N16: 0.00 | O16: 0.00 | P16: 0.00 | Q16: 0.00 | R16: 0.00
A17: 208 | B17: 10 | C17: 06 | D17: 养老服务 | E17: 200000.00 | F17: 0.00 | G17: 0.00 | H17: 0.00 | I17: 0.00 | J17: 200000.00 | K17: 0.00 | L17: 200000.00 | M17: 0.00 | N17: 0.00 | O17: 0.00 | P17: 0.00 | Q17: 0.00 | R17: 0.00
A18: 221 | E18: 489352.08 | F18: 489352.08 | G18: 489352.08 | H18: 0.00 | I18: 0.00 | J18: 0.00 | K18: 0.00 | L18: 0.00 | M18: 0.00 | N18: 0.00 | O18: 0.00 | P18: 0.00 | Q18: 0.00 | R18: 0.00
B19: 02 | E19: 489352.08 | F19: 489352.08 | G19: 489352.08 | H19: 0.00 | I19: 0.00 | J19: 0.00 | K19: 0.00 | L19: 0.00 | M19: 0.00 | N19: 0.00 | O19: 0.00 | P19: 0.00 | Q19: 0.00 | R19: 0.00
A20: 221 | B20: 02 | C20: 01 | D20: 住房公积金 | E20: 489352.08 | F20: 489352.08 | G20: 489352.08 | H20: 0.00 | I20: 0.00 | J20: 0.00 | K20: 0.00 | L20: 0.00 | M20: 0.00 | N20: 0.00 | O20: 0.00 | P20: 0.00 | Q20: 0.00 | R20: 0.00

Sheet 支出分类（政府预算）
A2: 部门支出总表(按政府预算经济分类)
A3: 单位名称：临湘市民政局机关 临湘市社会福利中心 临湘市救助站 | T3: 单位：元
A4: 功能科目 | D4: 功能科目 | E4: 总计 | F4: 机关工资福利支出 | G4: 机关商品和服务支出 | H4: 机关资本性支出（一） | I4: 机关资本性支出（二） | J4: 对事业单位经常性补助 | K4: 对事业单位资本性补助 | L4: 对企业补助 | M4: 对企业资本性支出 | N4: 对个人和家庭的补助 | O4: 对社会保障基金补助 | P4: 债务利息及费用支出 | Q4: 预备费及预留 | R4: 转移性支出 | S4: 债务还本支出 | T4: 其他支出
A5: 类 | B5: 款 | C5: 项
D7: 合计 | E7: =E8+E18 -> 12417745.31 | F7: =F8+F18 -> 5321338.84 | G7: 5003622.28 | H7: 0.00 | I7: 0.00 | J7: 483664.19 | K7: 0.00 | L7: 0.00 | M7: 0.00 | N7: 1609120.00 | O7: 0.00 | P7: 0.00 | Q7: 0.00 | R7: 0.00 | S7: 0.00 | T7: 0.00
A8: 208 | E8: =E9+E13+E16 -> 11928393.23 | F8: =F9+F13+F16 -> 4868391.64 | G8: 5003622.28 | H8: 0.00 | I8: 0.00 | J8: 447259.31 | K8: 0.00 | L8: 0.00 | M8: 0.00 | N8: 1609120.00 | O8: 0.00 | P8: 0.00 | Q8: 0.00 | R8: 0.00 | S8: 0.00 | T8: 0.00
A9: 208 | B9: 02 | E9: =E10+E11+E12 -> 11023353.23 | F9: =F10+F11+F12 -> 4215691.16 | G9: 5003622.28 | H9: 0.00 | I9: 0.00 | J9: 394919.79 | K9: 0.00 | L9: 0.00 | M9: 0.00 | N9: 1409120.00 | O9: 0.00 | P9: 0.00 | Q9: 0.00 | R9: 0.00 | S9: 0.00 | T9: 0.00
A10: 208 | B10: 02 | C10: 01 | D10: 行政运行（民政管理事务） | E10: =F10 -> 3479456.96 | F10: 3479456.96 | G10: 0.00 | H10: 0.00 | I10: 0.00 | J10: 0.00 | K10: 0.00 | L10: 0.00 | M10: 0.00 | N10: 0.00 | O10: 0.00 | P10: 0.00 | Q10: 0.00 | R10: 0.00 | S10: 0.00 | T10: 0.00
A11: 208 | B11: 02 | C11: 02 | D11: 一般行政管理事务（民政管理事务） | E11: 781400.00 | F11: 0.00 | G11: 781400.00 | H11: 0.00 | I11: 0.00 | J11: 0.00 | K11: 0.00 | L11: 0.00 | M11: 0.00 | N11: 0.00 | O11: 0.00 | P11: 0.00 | Q11: 0.00 | R11: 0.00 | S11: 0.00 | T11: 0.00
A12: 208 | B12: 02 | C12: 99 | D12: 其他民政管理事务支出 | E12: =F12+G12+J12+N12 -> 6762496.27 | F12: 736234.20 | G12: 4222222.28 | H12: 0.00 | I12: 0.00 | J12: 394919.79 | K12: 0.00 | L12: 0.00 | M12: 0.00 | N12: 1409120.00 | O12: 0.00 | P12: 0.00 | Q12: 0.00 | R12: 0.00 | S12: 0.00 | T12: 0.00
A13: 208 | B13: 05 | E13: =E14+E15 -> 705040.00 | F13: 652700.48 | G13: 0.00 | H13: 0.00 | I13: 0.00 | J13: 52339.52 | K13: 0.00 | L13: 0.00 | M13: 0.00 | N13: 0.00 | O13: 0.00 | P13: 0.00 | Q13: 0.00 | R13: 0.00 | S13: 0.00 | T13: 0.00
A14: 208 | B14: 05 | C14: 05 | D14: 机关事业单位基本养老保险缴费支出 | E14: =F14+J14 -> 652469.44 | F14: 603929.60 | G14: 0.00 | H14: 0.00 | I14: 0.00 | J14: 48539.84 | K14: 0.00 | L14: 0.00 | M14: 0.00 | N14: 0.00 | O14: 0.00 | P14: 0.00 | Q14: 0.00 | R14: 0.00 | S14: 0.00 | T14: 0.00
A15: 208 | B15: 05 | C15: 06 | D15: 机关事业单位职业年金缴费支出 | E15: =F15+J15 -> 52570.56 | F15: 48770.88 | G15: 0.00 | H15: 0.00 | I15: 0.00 | J15: 3799.68 | K15: 0.00 | L15: 0.00 | M15: 0.00 | N15: 0.00 | O15: 0.00 | P15: 0.00 | Q15: 0.00 | R15: 0.00 | S15: 0.00 | T15: 0.00
A16: 208 | B16: 10 | E16: 200000.00 | F16: 0.00 | G16: 0.00 | H16: 0.00 | I16: 0.00 | J16: 0.00 | K16: 0.00 | L16: 0.00 | M16: 0.00 | N16: 200000.00 | O16: 0.00 | P16: 0.00 | Q16: 0.00 | R16: 0.00 | S16: 0.00 | T16: 0.00
A17: 208 | B17: 10 | C17: 06 | D17: 养老服务 | E17: 200000.00 | F17: 0.00 | G17: 0.00 | H17: 0.00 | I17: 0.00 | J17: 0.00 | K17: 0.00 | L17: 0.00 | M17: 0.00 | N17: 200000.00 | O17: 0.00 | P17: 0.00 | Q17: 0.00 | R17: 0.00 | S17: 0.00 | T17: 0.00
A18: 221 | E18: =F18+J18 -> 489352.08 | F18: 452947.20 | G18: 0.00 | H18: 0.00 | I18: 0.00 | J18: 36404.88 | K18: 0.00 | L18: 0.00 | M18: 0.00 | N18: 0.00 | O18: 0.00 | P18: 0.00 | Q18: 0.00 | R18: 0.00 | S18: 0.00 | T18: 0.00
A19: 221 | B19: 02 | E19: =F19+J19 -> 489352.08 | F19: 452947.20 | G19: 0.00 | H19: 0.00 | I19: 0.00 | J19: 36404.88 | K19: 0.00 | L19: 0.00 | M19: 0.00 | N19: 0.00 | O19: 0.00 | P19: 0.00 | Q19: 0.00 | R19: 0.00 | S19: 0.00 | T19: 0.00
A20: 221 | B20: 02 | C20: 01 | D20: 住房公积金 | E20: =F20+J20 -> 489352.08 | F20: 452947.20 | G20: 0.00 | H20: 0.00 | I20: 0.00 | J20: 36404.88 | K20: 0.00 | L20: 0.00 | M20: 0.00 | N20: 0.00 | O20: 0.00 | P20: 0.00 | Q20: 0.00 | R20: 0.00 | S20: 0.00 | T20: 0.00

Sheet 基本-工资福利
A2: 基本支出预算明细表-工资福利
A3: 单位名称：临湘市民政局机关 临湘市社会福利中心 临湘市救助站 | V3: 单位：元
A4: 功能科目 | D4: 科目名称 | E4: 总计 | F4: 工资性支出 | K4: 社会保障缴费 | S4: 伙食补贴支出 | U4: 附加性支出6% | V4: 其他工资福利支出
A5: 类 | B5: 款 | C5: 项 | F5: 合计 | G5: 基本工资 | H5: 津贴补贴 | I5: 奖金 | J5: 绩效工资 | K5: 合计 | L5: 基本医疗保险 | M5: 医疗费 | N5: 其他社会保障缴费 | O5: 机关事业单位基本养老保险缴费 | P5: 职业年金 | Q5: 住房公积金 | R5: 公务员医疗补助缴费 | S5: 合计 | T5: 伙食补助费
D6: 合计 | E6: =E7+E14 -> 5749271.27 | F6: 4077934.00 | G6: 2454624.00 | H6: 593664.00 | I6: 88378.00 | J6: 941268.00 | K6: 1524059.83 | L6: 285455.38 | M6: 0.00 | N6: 44212.37 | O6: 652469.44 | P6: 52570.56 | Q6: 489352.08 | R6: 0.00 | S6: 0.00 | T6: 0.00 | U6: 147,277.44 | V6: 0.00
A7: 208 | D7: 行政运行（民政管理事务） | E7: =E8+E11 -> 5259919.19 | F7: 4077934.00 | G7: 2454624.00 | H7: 593664.00 | I7: 88378.00 | J7: 941268.00 | K7: 1034707.75 | L7: 285455.38 | M7: 0.00 | N7: 44212.37 | O7: 652469.44 | P7: 52570.56 | Q7: 0.00 | R7: 0.00 | S7: 0.00 | T7: 0.00 | U7: 147,277.44 | V7: 0.00
A8: 208 | B8: 02 | D8: 行政运行（民政管理事务） | E8: =E9+E10 -> 4554879.19 | F8: =F9+F10 -> 4077934.00 | G8: 2454624.00 | H8: 593664.00 | I8: 88378.00 | J8: 941268.00 | K8: 329667.75 | L8: 285455.38 | M8: 0.00 | N8: 44212.37 | O8: 0.00 | P8: 0.00 | Q8: 0.00 | R8: 0.00 | S8: 0.00 | T8: 0.00 | U8: =U9+U10 -> 147,277.44 | V8: 0.00
A9: 208 | B9: 02 | C9: 01 | D9: 行政运行（民政管理事务） | E9: =F9+K9+U9 -> 3479456.96 | F9: 3115376.00 | G9: 1877496.00 | H9: 572988.00 | I9: 85928.00 | J9: 578964.00 | K9: =L9+N9 -> 251431.20 | L9: 218076.32 | M9: 0.00 | N9: 33354.88 | O9: 0.00 | P9: 0.00 | Q9: 0.00 | R9: 0.00 | S9: 0.00 | T9: 0.00 | U9: 112,649.76 | V9: 0.00
A10: 208 | B10: 02 | C10: 99 | D10: 其他民政管理事务支出 | E10: =F10+K10+U10 -> 1075422.23 | F10: =SUM(G10:J10) -> 962558.00 | G10: 577128.00 | H10: 20676.00 | I10: 2450.00 | J10: 362304.00 | K10: =L10+N10 -> 78236.55 | L10: 67379.06 | N10: 10857.49 | U10: 34,627.68
A11: 208 | B11: 05 | D11: 机关事业单位基本养老保险缴费支出 | E11: =E12+E13 -> 705040.00 | F11: 0.00 | G11: 0.00 | H11: 0.00 | I11: 0.00 | J11: 0.00 | K11: =K12+K13 -> 705040.00 | L11: 0.00 | M11: 0.00 | N11: 0.00 | O11: =O12 -> 652469.44 | P11: =P13 -> 52570.56 | Q11: 0.00 | R11: 0.00 | S11: 0.00 | T11: 0.00 | U11: 0.00 | V11: 0.00
A12: 208 | B12: 05 | C12: 05 | D12: 机关事业单位基本养老保险缴费支出 | E12: 652469.44 | F12: 0.00 | G12: 0.00 | H12: 0.00 | I12: 0.00 | J12: 0.00 | K12: 652469.44 | L12: 0.00 | M12: 0.00 | N12: 0.00 | O12: 652469.44 | P12: 0.00 | Q12: 0.00 | R12: 0.00 | S12: 0.00 | T12: 0.00 | U12: 0.00 | V12: 0.00
A13: 208 | B13: 05 | C13: 06 | D13: 机关事业单位职业年金缴费支出 | E13: 52570.56 | F13: 0.00 | G13: 0.00 | H13: 0.00 | I13: 0.00 | J13: 0.00 | K13: 52570.56 | L13: 0.00 | M13: 0.00 | N13: 0.00 | O13: 0.00 | P13: 52570.56 | Q13: 0.00 | R13: 0.00 | S13: 0.00 | T13: 0.00 | U13: 0.00 | V13: 0.00
A14: 221 | D14: 住房公积金 | E14: 489352.08 | F14: 0.00 | G14: 0.00 | H14: 0.00 | I14: 0.00 | J14: 0.00 | K14: 489352.08 | L14: 0.00 | M14: 0.00 | N14: 0.00 | O14: 0.00 | P14: 0.00 | Q14: 489352.08 | R14: 0.00 | S14: 0.00 | T14: 0.00 | U14: 0.00 | V14: 0.00
A15: 221 | B15: 02 | D15: 住房公积金 | E15: 489352.08 | F15: 0.00 | G15: 0.00 | H15: 0.00 | I15: 0.00 | J15: 0.00 | K15: 489352.08 | L15: 0.00 | M15: 0.00 | N15: 0.00 | O15: 0.00 | P15: 0.00 | Q15: 489352.08 | R15: 0.00 | S15: 0.00 | T15: 0.00 | U15: 0.00 | V15: 0.00
A16: 221 | B16: 02 | C16: 01 | D16: 住房公积金 | E16: 489352.08 | F16: 0.00 | G16: 0.00 | H16: 0.00 | I16: 0.00 | J16: 0.00 | K16: 489352.08 | L16: 0.00 | M16: 0.00 | N16: 0.00 | O16: 0.00 | P16: 0.00 | Q16: 489352.08 | R16: 0.00 | S16: 0.00 | T16: 0.00 | U16: 0.00 | V16: 0.00

Sheet 基本-工资福利（政府预算）
A2: 基本支出预算明细表-工资福利（政府预算）
A3: 单位名称：临湘市民政局机关 临湘市社会福利中心 临湘市救助站 | M3: 单位：元
A4: 功能科目 | D4: 科目名称 | E4: 总计 | F4: 机关工资福利支出 | K4: 对事业单位经常性补助
A5: 类 | B5: 款 | C5: 项 | F5: 合计 | G5: 工资奖金津补贴 | H5: 社会保障缴费 | I5: 住房公积金 | J5: 其他工资福利支出 | K5: 合计 | L5: 工资福利支出 | M5: 其他对事业单位补助
D6: 合计 | E6: =E7+E14 -> 5749271.27 | F6: 5321338.84 | G6: 3774560.00 | H6: 957837.32 | I6: 452947.20 | J6: 135994.32 | K6: 427932.43 | L6: 427932.43 | M6: 0.00
A7: 208 | D7: 行政运行（民政管理事务） | E7: =E8+E11 -> 5259919.19 | F7: 4868391.64 | G7: 3774560.00 | H7: 957837.32 | I7: 0.00 | J7: 135994.32 | K7: 391527.55 | L7: 391527.55 | M7: 0.00
A8: 208 | D8: 2 | E8: =E9+E10 -> 4554879.19 | F8: 4215691.16 | G8: 3774560.00 | H8: 305136.84 | I8: 0.00 | J8: 135994.32 | K8: =L8 -> 339188.03 | L8: 339188.03 | M8: 0.00
A9: 208 | B9: 02 | C9: 01 | D9: 行政运行（民政管理事务） | E9: 3479456.96 | F9: 3479456.96 | G9: 3115376.00 | H9: 251431.20 | I9: 0.00 | J9: 112649.76 | K9: 0.00 | L9: 0.00 | M9: 0.00
A10: 208 | B10: 02 | C10: 99 | D10: 其他民政管理事务支出 | E10: =F10+K10 -> 1075422.23 | F10: =SUM(G10:J10) -> 736234.20 | G10: 659184.00 | H10: 53705.64 | J10: 23344.56 | K10: 339188.03 | L10: 339188.03
A11: 208 | D11: 5 | E11: 705040.00 | F11: 652700.48 | G11: 0.00 | H11: =H12+H13 -> 652700.48 | I11: 0.00 | J11: 0.00 | K11: 52339.52 | L11: =L12+L13 -> 52339.52 | M11: 0.00
A12: 208 | B12: 05 | C12: 05 | D12: 机关事业单位基本养老保险缴费支出 | E12: 652469.44 | F12: 603929.60 | G12: 0.00 | H12: 603929.60 | I12: 0.00 | J12: 0.00 | K12: 48539.84 | L12: 48539.84 | M12: 0.00
A13: 208 | B13: 05 | C13: 06 | D13: 机关事业单位职业年金缴费支出 | E13: 52570.56 | F13: 48770.88 | G13: 0.00 | H13: 48770.88 | I13: 0.00 | J13: 0.00 | K13: 3799.68 | L13: 3799.68 | M13: 0.00
A14: 221 | D14: 住房公积金 | E14: 489352.08 | F14: =F15 -> 452947.20 | G14: 0.00 | H14: 0.00 | I14: =I15 -> 452947.20 | J14: 0.00 | K14: 36404.88 | L14: 36404.88 | M14: 0.00
A15: 221 | D15: 2 | E15: 489352.08 | F15: =F16 -> 452947.20 | G15: 0.00 | H15: 0.00 | I15: =I16 -> 452947.20 | J15: 0.00 | K15: 36404.88 | L15: 36404.88 | M15: 0.00
A16: 221 | B16: 02 | C16: 01 | D16: 住房公积金 | E16: 489352.08 | F16: =I16 -> 452947.20 | G16: 0.00 | H16: 0.00 | I16: 452947.20 | J16: 0.00 | K16: 36404.88 | L16: 36404.88 | M16: 0.00

Sheet 基本-商品和服务支出
A2: 基本支出预算明细表-商品和服务支出
A3: 单位名称：临湘市民政局机关 临湘市社会福利中心 临湘市救助站 | AF3: 单位：元
A4: 功能科目 | D4: 科目名称 | E4: 总计 | F4: 办公费 | G4: 日常印刷费 | H4: 水费 | I4: 电费 | J4: 邮电费 | K4: 取暖费 | L4: 物业管理费 | M4: 差旅费 | N4: 日常维修(护)费 | O4: 租赁费 | P4: 会议费 | Q4: 培训费 | R4: 公务接待费 | S4: 劳务费 | T4: 工会经费 | U4: 福利费 | V4: 公务用车运行维护费 | W4: 其他交通费 | X4: 其他一般商品和服务支出 | Y4: 咨询费 | Z4: 手续费 | AA4: 因公出国（境）费 | AB4: 专用材料费 | AC4: 被装购置费 | AD4: 专用燃料费 | AE4: 委托业务费 | AF4: 税金及附加费用
A5: 类 | B5: 款 | C5: 项
D6: 合计 | E6: 956,400.00 | F6: 81,000.00 | G6: 53,000.00 | H6: 19,000.00 | I6: 40,000.00 | J6: 13,000.00 | K6: 0.00 | L6: 0.00 | M6: 34,000.00 | N6: 60,000.00 | O6: 0.00 | P6: 26,000.00 | Q6: 22,000.00 | R6: 98,000.00 | S6: 2,000.00 | T6: 96,000.00 | U6: 48,000.00 | V6: 30,000.00 | W6: 197,400.00 | X6: 127,000.00 | Y6: 0.00 | Z6: 0.00 | AA6: 0.00 | AB6: 10,000.00 | AC6: 0.00 | AD6: 0.00 | AE6: 0.00 | AF6: 0.00
A7: 208 | E7: 956,400.00 | F7: 81,000.00 | G7: 53,000.00 | H7: 19,000.00 | I7: 40,000.00 | J7: 13,000.00 | K7: 0.00 | L7: 0.00 | M7: 34,000.00 | N7: 60,000.00 | O7: 0.00 | P7: 26,000.00 | Q7: 22,000.00 | R7: 98,000.00 | S7: 2,000.00 | T7: 96,000.00 | U7: 48,000.00 | V7: 30,000.00 | W7: 197,400.00 | X7: 127,000.00 | Y7: 0.00 | Z7: 0.00 | AA7: 0.00 | AB7: 10,000.00 | AC7: 0.00 | AD7: 0.00 | AE7: 0.00 | AF7: 0.00
B8: 02 | E8: =E10+E9 -> 956,400.00 | F8: =F10+F9 -> 81,000.00 | G8: 53,000.00 | H8: 19,000.00 | I8: 40,000.00 | J8: 13,000.00 | K8: 0.00 | L8: 0.00 | M8: 34,000.00 | N8: 60,000.00 | O8: 0.00 | P8: 26,000.00 | Q8: 22,000.00 | R8: 98,000.00 | S8: 2,000.00 | T8: 96,000.00 | U8: 48,000.00 | V8: 30,000.00 | W8: 197,400.00 | X8: 127,000.00 | Y8: 0.00 | Z8: 0.00 | AA8: 0.00 | AB8: 10,000.00 | AC8: 0.00 | AD8: 0.00 | AE8: 0.00 | AF8: 0.00
A9: 208 | B9: 02 | C9: 02 | D9: 一般行政管理事务（民政管理事务） | E9: 781,400.00 | F9: 68,000.00 | G9: 45,000.00 | H9: 12,000.00 | I9: 26,000.00 | J9: 10,000.00 | K9: 0.00 | L9: 0.00 | M9: 33,000.00 | N9: 54,000.00 | O9: 0.00 | P9: 24,000.00 | Q9: 20,000.00 | R9: 78,000.00 | S9: 0.00 | T9: 45,000.00 | U9: 45,000.00 | V9: 0.00 | W9: 197,400.00 | X9: 124,000.00 | Y9: 0.00 | Z9: 0.00 | AA9: 0.00 | AB9: 0.00 | AC9: 0.00 | AD9: 0.00 | AE9: 0.00 | AF9: 0.00
A10: 208 | B10: 02 | C10: 99 | D10: 其他民政管理事务支出 | E10: =SUM(F10:AF10) -> 175,000.00 | F10: 13,000.00 | G10: 8,000.00 | H10: 7,000.00 | I10: 14,000.00 | J10: 3,000.00 | K10: 0.00 | L10: 0.00 | M10: 1,000.00 | N10: 6,000.00 | O10: 0.00 | P10: 2,000.00 | Q10: 2,000.00 | R10: 20,000.00 | S10: 2,000.00 | T10: 51,000.00 | U10: 3,000.00 | V10: 30,000.00 | W10: 0.00 | X10: 3,000.00 | Y10: 0.00 | Z10: 0.00 | AA10: 0.00 | AB10: 10,000.00 | AC10: 0.00 | AD10: 0.00 | AE10: 0.00 | AF10: 0.00

Sheet 基本-商品和服务支出（政府预算）
A2: 基本支出预算明细表-商品和服务支出（政府预算）
A3: 单位名称：临湘市民政局机关 临湘市社会福利中心 临湘市救助站 | S3: 单位：元
A4: 功能科目 | D4: 科目名称 | E4: 总计 | F4: 机关商品和服务支出 | Q4: 对事业单位经常性补助
A5: 类 | B5: 款 | C5: 项 | F5: 合计 | G5: 办公经费 | H5: 会议费 | I5: 培训费 | J5: 委托业务费 | K5: 公务接待费 | L5: 公务用车运行维护费 | M5: 维修（护）费 | N5: 其他商品和服务支出 | O5: 因公出国（境）费用 | P5: 专用材料购置费 | Q5: 合计 | R5: 商品和服务支出 | S5: 其他对事业单位补助
D6: 合计 | E6: 903400.00 | F6: 903400.00 | G6: 547400.00 | H6: 24000.00 | I6: 20000.00 | J6: 2000.00 | K6: 88000.00 | L6: 30000.00 | M6: 56000.00 | N6: 126000.00 | O6: 0.00 | P6: 10,000.00 | Q6: 0.00 | R6: 0.00 | S6: 0.00
A7: 208 | E7: 903400.00 | F7: 903400.00 | G7: 547400.00 | H7: 24000.00 | I7: 20000.00 | J7: 2000.00 | K7: 88000.00 | L7: 30000.00 | M7: 56000.00 | N7: 126000.00 | O7: 0.00 | P7: 10,000.00 | Q7: 0.00 | R7: 0.00 | S7: 0.00
B8: 02 | E8: =E9+E10 -> 903400.00 | F8: =F9+F10 -> 903400.00 | G8: 547400.00 | H8: 24000.00 | I8: 20000.00 | J8: 2000.00 | K8: 88000.00 | L8: 30000.00 | M8: 56000.00 | N8: 126000.00 | O8: 0.00 | P8: 10000.00 | Q8: 0.00 | R8: 0.00 | S8: 0.00
A9: 208 | B9: 02 | C9: 02 | D9: 一般行政管理事务（民政管理事务） | E9: 781400.00 | F9: 781400.00 | G9: 481400.00 | H9: 24000.00 | I9: 20000.00 | J9: 0.00 | K9: 78000.00 | L9: 0.00 | M9: 54000.00 | N9: 124000.00 | O9: 0.00 | P9: 0.00 | Q9: 0.00 | R9: 0.00 | S9: 0.00
A10: 208 | B10: 02 | C10: 99 | D10: 其他民政管理事务支出 | E10: 122000.00 | F10: 122000.00 | G10: 66000.00 | H10: 0.00 | I10: 0.00 | J10: 2000.00 | K10: 10000.00 | L10: 30000.00 | M10: 2000.00 | N10: 2000.00 | O10: 0.00 | P10: 10,000.00 | Q10: 0.00 | R10: 0.00 | S10: 0.00

Sheet 基本-个人家庭
A2: 基本支出明细表-对个人和家庭的补助
A3: 单位名称：临湘市民政局机关 临湘市社会福利中心 临湘市救助站 | P3: 单位：元
A4: 功能科目 | D4: 科目名称 | E4: 总计 | F4: 离休费 | G4: 退休费 | H4: 退职(役)费 | I4: 抚恤金 | J4: 生活补助 | K4: 救济费 | L4: 医疗费 | M4: 助学金 | N4: 奖励金 | O4: 生产补贴 | P4: 其他对个人和家庭的补助
A5: 类 | B5: 款 | C5: 项
D6: 合计 | E6: 9,120.00 | F6: 0.00 | G6: 0.00 | H6: 0.00 | I6: 9,120.00 | J6: 0.00 | K6: 0.00 | L6: 0.00 | M6: 0.00 | N6: 0.00 | O6: 0.00 | P6: 0.00
B7: 02 | E7: 9,120.00 | F7: 0.00 | G7: 0.00 | H7: 0.00 | I7: 9,120.00 | J7: 0.00 | K7: 0.00 | L7: 0.00 | M7: 0.00 | N7: 0.00 | O7: 0.00 | P7: 0.00
A8: 208 | E8: 9,120.00 | F8: 0.00 | G8: 0.00 | H8: 0.00 | I8: 9,120.00 | J8: 0.00 | K8: 0.00 | L8: 0.00 | M8: 0.00 | N8: 0.00 | O8: 0.00 | P8: 0.00
A9: 208 | B9: 02 | C9: 99 | D9: 其他民政管理事务支出 | E9: 9,120.00 | F9: 0.00 | G9: 0.00 | H9: 0.00 | I9: 9,120.00 | J9: 0.00 | K9: 0.00 | L9: 0.00 | M9: 0.00 | N9: 0.00 | O9: 0.00 | P9: 0.00

Sheet 基本-个人家庭（政府预算）
A2: 基本支出明细表-对个人和家庭的补助（政府预算）
A3: 单位名称：临湘市民政局机关 临湘市社会福利中心 临湘市救助站 | J3: 单位：元
A4: 功能科目 | D4: 科目名称 | E4: 总计 | F4: 社会福利和救济 | G4: 助学金 | H4: 个人农业生产补贴 | I4: 离退休 | J4: 其他对个人和家庭的补助
A5: 类 | B5: 款 | C5: 项
D6: 合计 | E6: 9,120.00 | F6: 9,120.00 | G6: 0.00 | H6: 0.00 | I6: 0.00 | J6: 0.00
A7: 208 | E7: 9,120.00 | F7: 9,120.00 | G7: 0.00 | H7: 0.00 | I7: 0.00 | J7: 0.00
B8: 02 | E8: 9,120.00 | F8: 9,120.00 | G8: 0.00 | H8: 0.00 | I8: 0.00 | J8: 0.00
A9: 208 | B9: 02 | C9: 99 | D9: 其他民政管理事务支出 | E9: 9,120.00 | F9: 9,120.00 | G9: 0.00 | H9: 0.00 | I9: 0.00 | J9: 0.00

Sheet 财政拨款收支总表
A1: 2020年部门预算收支总表
A2: 填报单位：临湘市民政局机关 临湘市社会福利中心 临湘市救助站 | G2: 单位：元
A3: 收入 | C3: 支出（功能科目）
A4: 项目 | B4: 本年预算 | C4: 项目 | D4: 合计 | E4: 一般公共预算 | F4: 政府性基金预算 | G4: 国有资本经营预算
A5: 一般预算拨款（补助） | B5: 一般预算拨款 | C5: 201、一般公共服务支出 | D5: 0.00 | E5: 0.00 | F5: 0.00
A6: 经费拨款 | B6: 11,227,745.31 | C6: 202、外交支出 | D6: 0.00 | E6: 0.00 | F6: 0.00
A7: 纳入预算管理的非税收入拨款 | B7: 0.00 | C7: 203、国防支出 | D7: 0.00 | E7: 0.00 | F7: 0.00
A8: 纳入专户管理的非税收入拨款 | B8: 0.00 | C8: 204、公共安全支出 | D8: 0.00 | E8: 0.00 | F8: 0.00
A9: 政府性基金拨款 | B9: 0.00 | C9: 205、教育支出 | D9: 0.00 | E9: 0.00 | F9: 0.00
A10: 事业单位经营服务收入 | B10: 1,190,000.00 | C10: 206、科学技术支出 | D10: 0.00 | E10: 0.00 | F10: 0.00
A11: 上级补助收入 | B11: 0.00 | C11: 207、文化体育与传媒支出 | D11: 0.00 | E11: 0.00 | F11: 0.00
A12: 附属单位上缴收入 | B12: 0.00 | C12: 208、社会保障和就业支出 | D12: 11,928,393.23 | E12: 10845649.07 | F12: 0.00
A13: 其他收入 | B13: 0.00 | C13: 209、社保基金支出 | D13: 0.00 | E13: 0.00 | F13: 0.00
A14: 上年结转 | B14: 0.00 | C14: 210、医疗卫生与计划生育支出 | D14: 0.00 | E14: 0.00 | F14: 0.00
C15: 211、节能环保支出 | D15: 0.00 | E15: 0.00 | F15: 0.00
C16: 212、城乡社区支出 | D16: 0.00 | E16: 0.00 | F16: 0.00
C17: 213、农林水支出 | D17: 0.00 | E17: 0.00 | F17: 0.00
C18: 214、交通运输支出 | D18: 0.00 | E18: 0.00 | F18: 0.00
C19: 215、资源勘探信息等支出 | D19: 0.00 | E19: 0.00 | F19: 0.00
C20: 216、商业服务业等支出 | D20: 0.00 | E20: 0.00 | F20: 0.00
C21: 217、金融支出 | D21: 0.00 | E21: 0.00 | F21: 0.00
C22: 219、援助其他地区支出 | D22: 0.00 | E22: 0.00 | F22: 0.00
C23: 220、国土海洋气象等支出 | D23: 0.00 | E23: 0.00 | F23: 0.00
C24: 221、住房保障支出 | D24: 489,352.08 | E24: 382096.24 | F24: 0.00
C25: 222、粮油物资储备支出 | D25: 0.00 | E25: 0.00 | F25: 0.00
C26: 223、国有资本经营预算支出 | D26: 0.00 | E26: 0.00 | F26: 0.00
C27: 227、预备费 | D27: 0.00 | E27: 0.00 | F27: 0.00
C28: 229、其他支出 | D28: 0.00 | E28: 0.00 | F28: 0.00
C29: 230、转移性支出 | D29: 0.00 | E29: 0.00 | F29: 0.00
C30: 231、债务还本支出 | D30: 0.00 | E30: 0.00 | F30: 0.00
C31: 232、债务付息支出 | D31: 0.00 | E31: 0.00 | F31: 0.00
C32: 233、债务发行费用支出 | D32: 0.00 | E32: 0.00 | F32: 0.00
A34: 本年收入合计 | B34: =B6+B10 -> 12,417,745.31 | C34: 本年支出合计 | D34: =D12+D24 -> 12,417,745.31 | E34: =E12+E24 -> 11227745.31 | F34: 0.00

Sheet 一般预算支出表
A2: 一般公共预算支出情况表
A3: 单位名称：临湘市民政局机关 临湘市社会福利中心 临湘市救助站 | R3: 单位：元
A4: 功能科目 | E4: 总计 | F4: 基本支出 | J4: 项目支出
A5: 科目编码 | D5: 科目名称 | F5: 合计 | G5: 工资福利支出 | H5: 一般商品和服务支出 | I5: 对个人和家庭的补助 | J5: 合计 | K5: 商品和服务支出 | L5: 对个人和家庭的补助支出 | M5: 资本性支出（基建） | N5: 资本性支出（项目支出） | O5: 其他资本性支出 | P5: 对企事业单位的补贴（基建） | Q5: 对社会保障基金补助 | R5: 其他支出 | S5: 债务利息及费用支出
A6: 类 | B6: 款 | C6: 项
D7: 合计 | E7: =E8+E15+E18 -> 11,227,745.31 | F7: =F8+F15+F18 -> 5,537,745.31 | G7: =G8+G15+G18 -> 4,751,225.31 | H7: =H8+H15+H18 -> 777,400.00 | I7: =I8+I15+I18 -> 9,120.00 | J7: 5,690,000.00 | K7: 4,090,000.00 | L7: 1,600,000.00 | M7: 0.00 | N7: 0.00 | O7: 0.00 | P7: 0.00 | Q7: 0.00 | R7: 0.00 | S7: 0.00
B8: 02 | E8: =E9+E13 -> 10,480,416.99 | F8: =F9+F13 -> 4,990,416.99 | G8: =G9+G13 -> 4,203,896.99 | H8: =H9+H13 -> 777,400.00 | I8: =I9+I13 -> 9,120.00 | J8: 5,490,000.00 | K8: 4,090,000.00 | L8: 1,400,000.00 | M8: 0.00 | N8: 0.00 | O8: 0.00 | P8: 0.00 | Q8: 0.00 | R8: 0.00 | S8: 0.00
A9: 208 | E9: =E10+E11+E12 -> 10,098,320.75 | F9: =F10+F11+F12 -> 4,608,320.75 | G9: =G10+G11+G12 -> 3,821,800.75 | H9: =H10+H11+H12 -> 777,400.00 | I9: =I10+I11+I12 -> 9,120.00 | J9: 5,490,000.00 | K9: 4,090,000.00 | L9: 1,400,000.00 | M9: 0.00 | N9: 0.00 | O9: 0.00 | P9: 0.00 | Q9: 0.00 | R9: 0.00 | S9: 0.00
A10: 208 | B10: 02 | C10: 01 | D10: 行政运行（民政管理事务） | E10: 3,026,387.00 | F10: 3,026,387.00 | G10: 3,026,387.00 | H10: 0.00 | I10: 0.00 | J10: 0.00 | K10: 0.00 | L10: 0.00 | M10: 0.00 | N10: 0.00 | O10: 0.00 | P10: 0.00 | Q10: 0.00 | R10: 0.00 | S10: 0.00
A11: 208 | B11: 02 | C11: 02 | D11: 一般行政管理事务（民政管理事务） | E11: 701,400.00 | F11: 701,400.00 | G11: 0.00 | H11: 701,400.00 | I11: 0.00 | J11: 0.00 | K11: 0.00 | L11: 0.00 | M11: 0.00 | N11: 0.00 | O11: 0.00 | P11: 0.00 | Q11: 0.00 | R11: 0.00 | S11: 0.00
A12: 208 | B12: 02 | C12: 99 | D12: 其他民政管理事务支出 | E12: =F12+J12 -> 6,370,533.75 | F12: =SUM(G12:I12) -> 880,533.75 | G12: 795,413.75 | H12: 76,000.00 | I12: 9,120.00 | J12: 5,490,000.00 | K12: 4,090,000.00 | L12: 1,400,000.00 | M12: 0.00 | N12: 0.00 | O12: 0.00 | P12: 0.00 | Q12: 0.00 | R12: 0.00 | S12: 0.00
A13: 221 | E13: =E14 -> 382,096.24 | F13: =F14 -> 382,096.24 | G13: =G14 -> 382,096.24 | H13: 0.00 | I13: 0.00 | J13: 0.00 | K13: 0.00 | L13: 0.00 | M13: 0.00 | N13: 0.00 | O13: 0.00 | P13: 0.00 | Q13: 0.00 | R13: 0.00 | S13: 0.00
A14: 221 | B14: 02 | C14: 01 | D14: 住房公积金 | E14: 382,096.24 | F14: 382,096.24 | G14: 382,096.24 | H14: 0.00 | I14: 0.00 | J14: 0.00 | K14: 0.00 | L14: 0.00 | M14: 0.00 | N14: 0.00 | O14: 0.00 | P14: 0.00 | Q14: 0.00 | R14: 0.00 | S14: 0.00
B15: 05 | E15: =F15 -> 547,328.32 | F15: =F16 -> 547,328.32 | G15: =G16 -> 547,328.32 | H15: 0.00 | I15: 0.00 | J15: 0.00 | K15: 0.00 | L15: 0.00 | M15: 0.00 | N15: 0.00 | O15: 0.00 | P15: 0.00 | Q15: 0.00 | R15: 0.00 | S15: 0.00
A16: 208 | E16: =F16 -> 547,328.32 | F16: =F17 -> 547,328.32 | G16: =G17 -> 547,328.32 | H16: 0.00 | I16: 0.00 | J16: 0.00 | K16: 0.00 | L16: 0.00 | M16: 0.00 | N16: 0.00 | O16: 0.00 | P16: 0.00 | Q16: 0.00 | R16: 0.00 | S16: 0.00
A17: 208 | B17: 05 | C17: 05 | D17: 机关事业单位基本养老保险缴费支出 | E17: =F17 -> 547,328.32 | F17: =G17 -> 547,328.32 | G17: 547,328.32 | H17: 0.00 | I17: 0.00 | J17: 0.00 | K17: 0.00 | L17: 0.00 | M17: 0.00 | N17: 0.00 | O17: 0.00 | P17: 0.00 | Q17: 0.00 | R17: 0.00 | S17: 0.00
B18: 10 | E18: 200,000.00 | F18: 0.00 | G18: 0.00 | H18: 0.00 | I18: 0.00 | J18: 200,000.00 | K18: 0.00 | L18: 200,000.00 | M18: 0.00 | N18: 0.00 | O18: 0.00 | P18: 0.00 | Q18: 0.00 | R18: 0.00 | S18: 0.00
A19: 208 | E19: 200,000.00 | F19: 0.00 | G19: 0.00 | H19: 0.00 | I19: 0.00 | J19: 200,000.00 | K19: 0.00 | L19: 200,000.00 | M19: 0.00 | N19: 0.00 | O19: 0.00 | P19: 0.00 | Q19: 0.00 | R19: 0.00 | S19: 0.00
A20: 208 | B20: 10 | C20: 06 | D20: 养老服务 | E20: 200,000.00 | F20: 0.00 | G20: 0.00 | H20: 0.00 | I20: 0.00 | J20: 200,000.00 | K20: 0.00 | L20: 200,000.00 | M20: 0.00 | N20: 0.00 | O20: 0.00 | P20: 0.00 | Q20: 0.00 | R20: 0.00 | S20: 0.00

Sheet 一般预算基本支出表
A2: 一般公共预算基本支出情况表
A3: 单位名称：临湘市民政局机关 临湘市社会福利中心 临湘市救助站 | I3: 单位：元
A4: 功能科目 | E4: 总计 | F4: 基本支出
A5: 科目编码 | D5: 科目名称 | F5: 合计 | G5: 工资福利支出 | H5: 一般商品和服务支出 | I5: 对个人和家庭的补助
A6: 类 | B6: 款 | C6: 项
D7: 合计 | E7: =E8+E15 -> 5,537,745.31 | F7: =F8+F15 -> 5,537,745.31 | G7: =G8+G15 -> 4,751,225.31 | H7: =H8+H15 -> 777,400.00 | I7: =I8+I15 -> 9,120.00
B8: 02 | E8: =E9+E13 -> 4,990,416.99 | F8: =F9+F13 -> 4,990,416.99 | G8: =G9+G13 -> 4,203,896.99 | H8: =H9+H13 -> 777,400.00 | I8: =I9+I13 -> 9,120.00
A9: 208 | E9: =SUM(E10:E12) -> 4,608,320.75 | F9: =SUM(F10:F12) -> 4,608,320.75 | G9: =SUM(G10:G12) -> 3,821,800.75 | H9: =SUM(H10:H12) -> 777,400.00 | I9: =SUM(I10:I12) -> 9,120.00
A10: 208 | B10: 02 | C10: 01 | D10: 行政运行（民政管理事务） | E10: 3,026,387.00 | F10: 3,026,387.00 | G10: 3,026,387.00 | H10: 0.00 | I10: 0.00
A11: 208 | B11: 02 | C11: 02 | D11: 一般行政管理事务（民政管理事务） | E11: 701,400.00 | F11: 701,400.00 | G11: 0.00 | H11: 701,400.00 | I11: 0.00
A12: 208 | B12: 02 | C12: 99 | D12: 其他民政管理事务支出 | E12: =F12 -> 880,533.75 | F12: =SUM(G12:I12) -> 880,533.75 | G12: 795,413.75 | H12: 76,000.00 | I12: 9,120.00
A13: 221 | E13: 382,096.24 | F13: 382,096.24 | G13: 382,096.24 | H13: 0.00 | I13: 0.00
A14: 221 | B14: 02 | C14: 01 | D14: 住房公积金 | E14: 382,096.24 | F14: 382,096.24 | G14: 382,096.24 | H14: 0.00 | I14: 0.00
B15: 05 | E15: 547,328.32 | F15: 547,328.32 | G15: 547,328.32 | H15: 0.00 | I15: 0.00
A16: 208 | E16: 547,328.32 | F16: 547,328.32 | G16: 547,328.32 | H16: 0.00 | I16: 0.00
A17: 208 | B17: 05 | C17: 05 | D17: 机关事业单位基本养老保险缴费支出 | E17: 547,328.32 | F17: 547,328.32 | G17: 547,328.32 | H17: 0.00 | I17: 0.00

Sheet 一般-工资福利
A2: 一般公共预算基本支出预算明细表-工资福利支出
A3: 单位名称：临湘市民政局机关 临湘市社会福利中心 临湘市救助站 | V3: 单位：元
A4: 功能科目 | D4: 科目名称 | E4: 总计 | F4: 工资性支出 | K4: 社会保障缴费 | Q4: 住房公积金 | R4: 伙食补贴支出 | U4: 附加性支出%6 | V4: 其他工资福利支出
A5: 类 | B5: 款 | C5: 项 | F5: 合计 | G5: 基本工资 | H5: 津贴补贴 | I5: 奖金 | J5: 绩效工资 | K5: 合计 | L5: 职工基本医疗保险 | M5: 公务员医疗补助缴费 | N5: 其他社会保障缴费 | O5: 机关事业单位基本养老保险缴费 | P5: 职业年金 | R5: 合计 | S5: 医疗费 | T5: 伙食补助费
D6: 合计 | E6: =F6+K6+U6+Q6 -> 4751225.31 | F6: =F7+F13 -> 3420802.00 | G6: 2087304.00 | H6: 593664.00 | I6: 88378.00 | J6: 651456.00 | K6: 823088.83 | L6: =L7 -> 239456.14 | M6: 0.00 | N6: =N7 -> 36304.37 | O6: 547328.32 | P6: 0.00 | Q6: 382096.24 | R6: 0.00 | S6: 0.00 | T6: 0.00 | U6: =U7 -> 125238.24 | V6: 0.00
B7: 02 | E7: =F7+K7+U7+Q7 -> 4203896.99 | F7: =F8+F11 -> 3420802.00 | G7: =G8+G11 -> 2087304.00 | H7: =H8+H11 -> 593664.00 | I7: =I8+I11 -> 88378.00 | J7: =J8+J11 -> 651456.00 | K7: =SUM(L7:P7) -> 275760.51 | L7: =L8 -> 239456.14 | M7: 0.00 | N7: =N8 -> 36304.37 | O7: 0.00 | P7: 0.00 | Q7: 382096.24 | R7: 0.00 | S7: 0.00 | T7: 0.00 | U7: =U8 -> 125238.24 | V7: 0.00
A8: 208 | E8: =F8+K8+U8 -> 3821800.75 | F8: =F9+F10 -> 3420802.00 | G8: =G9+G10 -> 2087304.00 | H8: =H9+H10 -> 593664.00 | I8: =I9+I10 -> 88378.00 | J8: =J9+J10 -> 651456.00 | K8: =SUM(L8:P8) -> 275760.51 | L8: =L9+L10 -> 239456.14 | M8: 0.00 | N8: =N9+N10 -> 36304.37 | O8: 0.00 | P8: 0.00 | Q8: 0.00 | R8: 0.00 | S8: 0.00 | T8: 0.00 | U8: =SUM(U9:U10) -> 125238.24 | V8: 0.00
A9: 208 | B9: 02 | C9: 01 | D9: 行政运行（民政管理事务） | E9: =F9+K9+U9 -> 3026387.00 | F9: 2709176.00 | G9: 1651488.00 | H9: 572988.00 | I9: 85928.00 | J9: 398772.00 | K9: =SUM(L9:P9) -> 218121.72 | L9: 189642.32 | M9: 0.00 | N9: 28479.40 | O9: 0.00 | P9: 0.00 | Q9: 0.00 | R9: 0.00 | S9: 0.00 | T9: 0.00 | U9: 99089.28 | V9: 0.00
A10: 208 | B10: 02 | C10: 99 | D10: 其他民政管理事务支出 | E10: =F10+K10+U10 -> 795413.75 | F10: =SUM(G10:J10) -> 711626.00 | G10: 435816.00 | H10: 20676.00 | I10: 2450.00 | J10: 252684.00 | K10: =SUM(L10:P10) -> 57638.79 | L10: 49813.82 | M10: 0.00 | N10: 7824.97 | O10: 0.00 | P10: 0.00 | Q10: 0.00 | R10: 0.00 | S10: 0.00 | T10: 0.00 | U10: 26148.96 | V10: 0.00
A11: 221 | E11: 382096.24 | F11: 0.00 | G11: 0.00 | H11: 0.00 | I11: 0.00 | J11: 0.00 | K11: 0.00 | L11: 0.00 | M11: 0.00 | N11: 0.00 | O11: 0.00 | P11: 0.00 | Q11: =Q12 -> 382096.24 | R11: 0.00 | S11: 0.00 | T11: 0.00 | U11: 0.00 | V11: 0.00
A12: 221 | B12: 02 | C12: 01 | D12: 住房公积金 | E12: 382096.24 | F12: 0.00 | G12: 0.00 | H12: 0.00 | I12: 0.00 | J12: 0.00 | K12: 0.00 | L12: 0.00 | M12: 0.00 | N12: 0.00 | O12: 0.00 | P12: 0.00 | Q12: 382096.24 | R12: 0.00 | S12: 0.00 | T12: 0.00 | U12: 0.00 | V12: 0.00
B13: 05 | E13: 547328.32 | F13: 0.00 | G13: 0.00 | H13: 0.00 | I13: 0.00 | J13: 0.00 | K13: 547328.32 | L13: 0.00 | M13: 0.00 | N13: 0.00 | O13: 547328.32 | P13: 0.00 | Q13: 0.00 | R13: 0.00 | S13: 0.00 | T13: 0.00 | U13: 0.00 | V13: 0.00
A14: 208 | E14: 547328.32 | F14: 0.00 | G14: 0.00 | H14: 0.00 | I14: 0.00 | J14: 0.00 | K14: 547328.32 | L14: 0.00 | M14: 0.00 | N14: 0.00 | O14: 547328.32 | P14: 0.00 | Q14: 0.00 | R14: 0.00 | S14: 0.00 | T14: 0.00 | U14: 0.00 | V14: 0.00
A15: 208 | B15: 05 | C15: 05 | D15: 机关事业单位基本养老保险缴费支出 | E15: 547328.32 | F15: 0.00 | G15: 0.00 | H15: 0.00 | I15: 0.00 | J15: 0.00 | K15: 547328.32 | L15: 0.00 | M15: 0.00 | N15: 0.00 | O15: 547328.32 | P15: 0.00 | Q15: 0.00 | R15: 0.00 | S15: 0.00 | T15: 0.00 | U15: 0.00 | V15: 0.00

Sheet 一般-工资福利（政府预算）
A2: 一般公共预算基本支出预算明细表-工资福利支出(按政府预算经济分类)
A3: 单位名称：临湘市民政局机关 临湘市社会福利中心 临湘市救助站 | M3: 单位：元
A4: 功能科目 | D4: 科目名称 | E4: 总计 | F4: 机关工资福利支出 | K4: 对事业单位经常性补助
A5: 类 | B5: 款 | C5: 项 | F5: 合计 | G5: 工资奖金津补贴 | H5: 社会保障缴费 | I5: 住房公积金 | J5: 其他工资福利支出 | K5: 合计 | L5: 工资福利支出 | M5: 其他对事业单位补助
D6: 合计 | E6: =F6+K6 -> 4751225.31 | F6: =SUM(G6:J6) -> 4403561.12 | G6: =G7+G13 -> 3164924.00 | H6: 761535.20 | I6: 361590.88 | J6: 115511.04 | K6: 347664.19 | L6: 347664.19 | M6: 0.00
B7: 02 | E7: 4203896.99 | F7: =SUM(G7:J7) -> 3897173.28 | G7: =G8+G11 -> 3164924.00 | H7: 255147.36 | I7: 361590.88 | J7: 115511.04 | K7: 306723.71 | L7: 306723.71 | M7: 0.00
A8: 208 | E8: 3821800.75 | F8: =SUM(G8:J8) -> 3535582.40 | G8: =SUM(G9:G10) -> 3164924.00 | H8: =SUM(H9:H10) -> 255147.36 | I8: =SUM(I9:I10) -> 0.00 | J8: =SUM(J9:J10) -> 115511.04 | K8: 286218.35 | L8: 286218.35 | M8: 0.00
A9: 208 | B9: 02 | C9: 01 | D9: 行政运行（民政管理事务） | E9: 3026387.00 | F9: =SUM(G9:J9) -> 3026387.00 | G9: 2709176.00 | H9: 218121.72 | I9: 0.00 | J9: 99089.28 | K9: 0.00 | L9: 0.00 | M9: 0.00
A10: 208 | B10: 02 | C10: 99 | D10: 其他民政管理事务支出 | E10: 795413.75 | F10: =SUM(G10:J10) -> 509195.40 | G10: 455748.00 | H10: 37025.64 | I10: 0.00 | J10: 16421.76 | K10: 286218.35 | L10: 286218.35 | M10: 0.00
A11: 221 | E11: 382096.24 | F11: 361590.88 | G11: 0.00 | H11: 0.00 | I11: 361590.88 | J11: 0.00 | K11: 20505.36 | L11: 20505.36 | M11: 0.00
A12: 221 | B12: 02 | C12: 01 | D12: 住房公积金 | E12: 382096.24 | F12: 361590.88 | G12: 0.00 | H12: 0.00 | I12: 361590.88 | J12: 0.00 | K12: 20505.36 | L12: 20505.36 | M12: 0.00
B13: 05 | E13: 547328.32 | F13: 506387.84 | G13: 0.00 | H13: 506387.84 | I13: 0.00 | J13: 0.00 | K13: 40940.48 | L13: 40940.48 | M13: 0.00
A14: 208 | E14: 547328.32 | F14: 506387.84 | G14: 0.00 | H14: 506387.84 | I14: 0.00 | J14: 0.00 | K14: 40940.48 | L14: 40940.48 | M14: 0.00
A15: 208 | B15: 05 | C15: 05 | D15: 机关事业单位基本养老保险缴费支出 | E15: 547328.32 | F15: 506387.84 | G15: 0.00 | H15: 506387.84 | I15: 0.00 | J15: 0.00 | K15: 40940.48 | L15: 40940.48 | M15: 0.00

Sheet 一般-商品和服务支出
A2: 一般公共预算基本预算支出明细表-商品和服务支出
A3: 单位名称临湘市民政局机关 | F3: 单位名称：临湘市民政局机关 临湘市社会福利中心 临湘市救助站 | AF3: 单位：元
A4: 功能科目 | D4: 科目名称 | E4: 总计 | F4: 办公费 | G4: 日常印刷费 | H4: 水费 | I4: 电费 | J4: 邮电费 | K4: 取暖费 | L4: 物业管理费 | M4: 因公出国（境）费 | N4: 差旅费 | O4: 日常维修(护)费 | P4: 租赁费 | Q4: 会议费 | R4: 培训费 | S4: 公务接待费 | T4: 劳务费 | U4: 工会经费 | V4: 福利费 | W4: 公务用车运行维护费 | X4: 其他交通费 | Y4: 其他一般商品和服务支出 | Z4: 税金及附加费用 | AA4: 业务委托费 | AB4: 专用燃料费 | AC4: 被装购置费 | AD4: 专用材料费 | AE4: 手续费 | AF4: 咨询费
A5: 类 | B5: 款 | C5: 项
D6: 合计 | E6: 4,867,400.00 | F6: 353,000.00 | G6: 343,000.00 | H6: 42,000.00 | I6: 75,000.00 | J6: 30,000.00 | K6: 0.00 | L6: 0.00 | M6: 0.00 | N6: 380,000.00 | O6: 303,000.00 | P6: 50,000.00 | Q6: 321,000.00 | R6: 321,000.00 | S6: 252,000.00 | T6: 302,000.00 | U6: 148,000.00 | V6: 233,000.00 | W6: 23,000.00 | X6: 397,400.00 | Y6: 1,144,000.00 | Z6: 0.0000 | AA6: 0.0000 | AB6: 0.0000 | AC6: 0.0000 | AD6: 0.0000 | AE6: 100000.00 | AF6: 50000.00
B7: 02 | E7: 4,867,400.00 | F7: 353,000.00 | G7: 343,000.00 | H7: 42,000.00 | I7: 75,000.00 | J7: 30,000.00 | K7: 0.00 | L7: 0.00 | M7: 0.00 | N7: 380,000.00 | O7: 303,000.00 | P7: 50,000.00 | Q7: 321,000.00 | R7: 321,000.00 | S7: 252,000.00 | T7: 302,000.00 | U7: 148,000.00 | V7: 233,000.00 | W7: 23,000.00 | X7: 397,400.00 | Y7: 1,144,000.00 | Z7: 0.0000 | AA7: 0.0000 | AB7: 0.0000 | AC7: 0.0000 | AD7: 0.0000 | AE7: 100000.00 | AF7: 50000.00
A8: 208 | E8: =E9+E10 -> 4,867,400.00 | F8: =F9+F10 -> 353,000.00 | G8: 343,000.00 | H8: 42,000.00 | I8: 75,000.00 | J8: 30,000.00 | K8: 0.00 | L8: 0.00 | M8: 0.00 | N8: 380,000.00 | O8: 303,000.00 | P8: 50,000.00 | Q8: 321,000.00 | R8: 321,000.00 | S8: 252,000.00 | T8: 302,000.00 | U8: 148,000.00 | V8: 233,000.00 | W8: 23,000.00 | X8: 397,400.00 | Y8: 1,144,000.00 | Z8: 0.0000 | AA8: 0.0000 | AB8: 0.0000 | AC8: 0.0000 | AD8: 0.0000 | AE8: 100000.00 | AF8: 50000.00
A9: 208 | B9: 02 | C9: 02 | D9: 一般行政管理事务（民政管理事务） | E9: 701,400.00 | F9: 50,000.00 | G9: 40,000.00 | H9: 10,000.00 | I9: 20,000.00 | J9: 10,000.00 | K9: 0.00 | L9: 0.00 | M9: 0.00 | N9: 30,000.00 | O9: 50,000.00 | P9: 0.00 | Q9: 20,000.00 | R9: 20,000.00 | S9: 50,000.00 | T9: 0.00 | U9: 40,000.00 | V9: 40,000.00 | W9: 0.00 | X9: 197,400.00 | Y9: 124,000.00 | Z9: 0.0000 | AA9: 0.0000 | AB9: 0.0000 | AC9: 0.0000 | AD9: 0.0000 | AE9: 0.00 | AF9: 0.00
A10: 208 | B10: 02 | C10: 99 | D10: 其他民政管理事务支出 | E10: 4,166,000.00 | F10: 303,000.00 | G10: 303,000.00 | H10: 32,000.00 | I10: 55,000.00 | J10: 20,000.00 | K10: 0.00 | L10: 0.00 | M10: 0.00 | N10: 350,000.00 | O10: 253,000.00 | P10: 50,000.00 | Q10: 301,000.00 | R10: 301,000.00 | S10: 202,000.00 | T10: 302,000.00 | U10: 108,000.00 | V10: 193,000.00 | W10: 23,000.00 | X10: 200,000.00 | Y10: 1,020,000.00 | Z10: 0.00 | AA10: 0.00 | AB10: 0.00 | AC10: 0.00 | AD10: 0.00 | AE10: 100000.00 | AF10: 50000.00

Sheet 一般-商品和服务支出（政府预算）
A2: 一般公共预算支出预算明细表-商品和服务支出（政府预算）
A3: 单位名称：临湘市民政局机关 临湘市社会福利中心 临湘市救助站 | S3: 单位：元
A4: 功能科目 | D4: 科目名称 | E4: 总计 | F4: 机关商品和服务支出 | Q4: 对事业单位经常性补助
A5: 类 | B5: 款 | C5: 项 | F5: 合计 | G5: 办公经费 | H5: 会议费 | I5: 培训费 | J5: 委托业务费 | K5: 公务接待费 | L5: 公务用车运行维护费 | M5: 维修（护）费 | N5: 其他商品和服务支出 | O5: 因公出国（境）费用 | P5: 专用材料购置费 | Q5: 合计 | R5: 商品和服务支出 | S5: 其他对事业单位补助
D6: 合计 | E6: 4,867,400.00 | F6: 4,841,400.00 | G6: 2,140,400.00 | H6: 320,000.00 | I6: 320,000.00 | J6: 352,000.00 | K6: 242,000.00 | L6: 23,000.00 | M6: 300,000.00 | N6: 1,144,000.00 | O6: 0.0000 | P6: 0.0000 | Q6: 26,000.00 | R6: 26,000.00 | S6: 0.00
B7: 02 | E7: 4,867,400.00 | F7: 4,841,400.00 | G7: 2,140,400.00 | H7: 320,000.00 | I7: 320,000.00 | J7: 352,000.00 | K7: 242,000.00 | L7: 23,000.00 | M7: 300,000.00 | N7: 1,144,000.00 | O7: 0.0000 | P7: 0.0000 | Q7: 26,000.00 | R7: 26,000.00 | S7: 0.00
A8: 208 | E8: =E9+E10 -> 4,867,400.00 | F8: =F9+F10 -> 4,841,400.00 | G8: 2,140,400.00 | H8: 320,000.00 | I8: 320,000.00 | J8: 352,000.00 | K8: 242,000.00 | L8: 23,000.00 | M8: 300,000.00 | N8: 1,144,000.00 | O8: 0.0000 | P8: 0.0000 | Q8: 26,000.00 | R8: 26,000.00 | S8: 0.00
A9: 208 | B9: 02 | C9: 02 | D9: 一般行政管理事务（民政管理事务） | E9: 701,400.00 | F9: 701,400.00 | G9: 437,400.00 | H9: 20,000.00 | I9: 20,000.00 | J9: 0.00 | K9: 50,000.00 | L9: 0.00 | M9: 50,000.00 | N9: 124,000.00 | O9: 0.0000 | P9: 0.0000 | Q9: 0.00 | R9: 0.00 | S9: 0.00
A10: 208 | B10: 02 | C10: 99 | D10: 其他民政管理事务支出 | E10: =F10+Q10 -> 4,166,000.00 | F10: 4,140,000.00 | G10: 1,703,000.00 | H10: 300,000.00 | I10: 300,000.00 | J10: 352,000.00 | K10: 192,000.00 | L10: 23,000.00 | M10: 250,000.00 | N10: 1,020,000.00 | O10: 0.0000 | P10: 0.0000 | Q10: 26,000.00 | R10: 26,000.00 | S10: 0.00

Sheet 一般-个人家庭
A2: 一般公共预算基本支出明细表-对个人和家庭的补助
A3: 单位名称：临湘市民政局机关 临湘市社会福利中心 临湘市救助站 | P3: 单位：元
A4: 功能科目 | D4: 科目名称 | E4: 总计 | F4: 离休费 | G4: 退休费 | H4: 退职(役)费 | I4: 抚恤金 | J4: 生活补助 | K4: 救济费 | L4: 医疗费 | M4: 助学金 | N4: 奖励金 | O4: 生产补贴 | P4: 其他对个人和家庭的补助
A5: 类 | B5: 款 | C5: 项
D6: 合计 | E6: 1,609,120.00 | F6: 0.00 | G6: 0.00 | H6: 0.00 | I6: 9,120.00 | J6: 0.00 | K6: 0.00 | L6: 0.00 | M6: 0.00 | N6: 0.00 | O6: 0.00 | P6: 1,600,000.00
B7: 02 | E7: 1,409,120.00 | F7: 0.00 | G7: 0.00 | H7: 0.00 | I7: 9,120.00 | J7: 0.00 | K7: 0.00 | L7: 0.00 | M7: 0.00 | N7: 0.00 | O7: 0.00 | P7: 1,400,000.00
A8: 208 | E8: 1,409,120.00 | F8: 0.00 | G8: 0.00 | H8: 0.00 | I8: 9,120.00 | J8: 0.00 | K8: 0.00 | L8: 0.00 | M8: 0.00 | N8: 0.00 | O8: 0.00 | P8: 1,400,000.00
A9: 208 | B9: 02 | C9: 99 | D9: 其他民政管理事务支出 | E9: 1,409,120.00 | F9: 0.00 | G9: 0.00 | H9: 0.00 | I9: 9,120.00 | J9: 0.00 | K9: 0.00 | L9: 0.00 | M9: 0.00 | N9: 0.00 | O9: 0.00 | P9: 1,400,000.00
B10: 10 | E10: 200,000.00 | F10: 0.00 | G10: 0.00 | H10: 0.00 | I10: 0.00 | J10: 0.00 | K10: 0.00 | L10: 0.00 | M10: 0.00 | N10: 0.00 | O10: 0.00 | P10: 200,000.00
A11: 208 | E11: 200,000.00 | F11: 0.00 | G11: 0.00 | H11: 0.00 | I11: 0.00 | J11: 0.00 | K11: 0.00 | L11: 0.00 | M11: 0.00 | N11: 0.00 | O11: 0.00 | P11: 200,000.00
A12: 208 | B12: 10 | C12: 06 | D12: 养老服务 | E12: 200,000.00 | F12: 0.00 | G12: 0.00 | H12: 0.00 | I12: 0.00 | J12: 0.00 | K12: 0.00 | L12: 0.00 | M12: 0.00 | N12: 0.00 | O12: 0.00 | P12: 200,000.00

Sheet 一般-个人家庭（政府预算）
A2: 一般公共预算基本支出明细表-对个人和家庭的补助（政府预算）
A3: 单位名称：临湘市民政局机关 临湘市社会福利中心 临湘市救助站 | J3: 单位：元
A4: 功能科目 | D4: 科目名称 | E4: 总计 | F4: 社会福利和救济 | G4: 助学金 | H4: 个人农业生产补贴 | I4: 离退休 | J4: 其他对个人和家庭的补助
A5: 类 | B5: 款 | C5: 项
D6: 合计 | E6: 1,609,120.00 | F6: 9,120.00 | G6: 0.00 | H6: 0.00 | I6: 0.00 | J6: 1,600,000.00
B7: 02 | E7: 1,409,120.00 | F7: 9,120.00 | G7: 0.00 | H7: 0.00 | I7: 0.00 | J7: 1,400,000.00
A8: 208 | E8: 1,409,120.00 | F8: 9,120.00 | G8: 0.00 | H8: 0.00 | I8: 0.00 | J8: 1,400,000.00
A9: 208 | B9: 02 | C9: 99 | D9: 其他民政管理事务支出 | E9: 1,409,120.00 | F9: 9,120.00 | G9: 0.00 | H9: 0.00 | I9: 0.00 | J9: 1,400,000.00
B10: 10 | E10: 200,000.00 | F10: 0.00 | G10: 0.00 | H10: 0.00 | I10: 0.00 | J10: 200,000.00
A11: 208 | E11: 200,000.00 | F11: 0.00 | G11: 0.00 | H11: 0.00 | I11: 0.00 | J11: 200,000.00
A12: 208 | B12: 10 | C12: 06 | D12: 养老服务 | E12: 200,000.00 | F12: 0.00 | G12: 0.00 | H12: 0.00 | I12: 0.00 | J12: 200,000.00

Sheet 基金
A2: 政府性基金预算支出情况表
A3: 单位名称：临湘市民政局机关 临湘市社会福利中心 临湘市救助站 | Q3: 单位：元
A4: 功能科目 | E4: 总计 | F4: 基本支出 | J4: 项目支出
A5: 科目编码 | D5: 科目名称 | F5: 合计 | G5: 工资福利支出 | H5: 一般商品和服务支出 | I5: 对个人和家庭的补助 | J5: 合计 | K5: 商品和服务支出 | L5: 对个人和家庭的补助支出 | M5: 基本建设 | N5: 其他资本性支出 | O5: 对企事业单位的补贴 | P5: 其他支出 | Q5: 债务利息及费用支出
A6: 类 | B6: 款 | C6: 项
A7: 0 | B7: 0 | C7: 0 | D7: 0 | E7: 0 | F7: 0 | G7: 0 | H7: 0 | I7: 0 | J7: 0 | K7: 0 | L7: 0 | M7: 0 | N7: 0 | O7: 0 | P7: 0 | Q7: 0

Sheet 基金（政府预算）
A2: 政府性基金预算支出情况表(按政府预算经济分类)
A3: 单位名称：临湘市民政局机关 临湘市社会福利中心 临湘市救助站 | Q3: 单位：元
A4: 功能科目 | D4: 功能科目 | E4: 总计 | F4: 机关工资福利支出 | G4: 机关商品和服务支出 | H4: 机关资本性支出（一） | I4: 机关资本性支出（二） | J4: 对事业单位经常性补助 | K4: 对事业单位资本性补助 | L4: 对企业补助 | M4: 对企业资本性支出 | N4: 对个人和家庭的补助 | O4: 对社会保障基金补助 | P4: 债务利息及费用支出 | Q4: 其他支出
A5: 类 | B5: 款 | C5: 项
A7: 0 | B7: 0 | C7: 0 | D7: 0 | E7: 0 | F7: 0 | G7: 0 | H7: 0 | I7: 0 | J7: 0 | K7: 0 | L7: 0 | M7: 0 | N7: 0 | O7: 0 | P7: 0 | Q7: 0

Sheet 专户
A2: 纳入专户管理的非税收入预算拨款汇总表
A3: 单位名称：临湘市民政局机关 临湘市社会福利中心 临湘市救助站 | Q3: 单位：元
A4: 功能科目 | E4: 总计 | F4: 基本支出 | J4: 项目支出
A5: 科目编码 | D5: 科目名称 | F5: 合计 | G5: 工资福利支出 | H5: 一般商品和服务支出 | I5: 对个人和家庭的补助 | J5: 合计 | K5: 商品和服务支出 | L5: 对个人和家庭的补助支出 | M5: 基本建设 | N5: 其他资本性支出 | O5: 对企事业单位的补贴 | P5: 其他支出 | Q5: 债务利息及费用支出
A6: 类 | B6: 款 | C6: 项
A7: 0 | B7: 0 | C7: 0 | D7: 0 | E7: 0 | F7: 0 | G7: 0 | H7: 0 | I7: 0 | J7: 0 | K7: 0 | L7: 0 | M7: 0 | N7: 0 | O7: 0 | P7: 0 | Q7: 0

Sheet 专户（政府预算）
A2: 纳入专户管理的非税收入拨款预算分类汇总表(按政府预算经济分类)
A3: 单位名称：临湘市民政局机关 临湘市社会福利中心 临湘市救助站 | Q3: 单位：元
A4: 功能科目 | D4: 功能科目 | E4: 总计 | F4: 机关工资福利支出 | G4: 机关商品和服务支出 | H4: 机关资本性支出（一） | I4: 机关资本性支出（二） | J4: 对事业单位经常性补助 | K4: 对事业单位资本性补助 | L4: 对企业补助 | M4: 对企业资本性支出 | N4: 对个人和家庭的补助 | O4: 对社会保障基金补助 | P4: 债务利息及费用支出 | Q4: 其他支出
A5: 类 | B5: 款 | C5: 项
A7: 0 | B7: 0 | C7: 0 | D7: 0 | E7: 0 | F7: 0 | G7: 0 | H7: 0 | I7: 0 | J7: 0 | K7: 0 | L7: 0 | M7: 0 | N7: 0 | O7: 0 | P7: 0 | Q7: 0

Sheet 经费拨款
A2: 一般预算拨款-经费拨款
A3: 单位名称：临湘市民政局机关 临湘市社会福利中心 临湘市救助站 | Q3: 单位：元
A4: 功能科目 | E4: 总计 | F4: 基本支出 | J4: 项目支出
A5: 科目编码 | D5: 科目名称 | F5: 合计 | G5: 工资福利支出 | H5: 一般商品和服务支出 | I5: 对个人和家庭的补助 | J5: 合计 | K5: 商品和服务支出 | L5: 对个人和家庭的补助支出 | M5: 基本建设 | N5: 其他资本性支出 | O5: 对企事业单位的补贴 | P5: 其他支出 | Q5: 债务利息及费用支出
A6: 类 | B6: 款 | C6: 项
D7: 合计 | E7: =F7+J7 -> 11227745.31 | F7: =F8+F17 -> 5537745.31 | G7: =G8+G17 -> 4751225.31 | H7: =H8+H17 -> 777400.00 | I7: =I8+I17 -> 9120.00 | J7: 5690000.00 | K7: 4090000.00 | L7: 1600000.00 | M7: 0.00 | N7: 0.00 | O7: 0.00 | P7: 0.00 | Q7: 0.00
A8: 208 | E8: 10845649.07 | F8: =F9+F13 -> 5155649.07 | G8: =G9+G13 -> 4369129.07 | H8: =H9+H13 -> 777400.00 | I8: =I9+I13 -> 9120.00 | J8: 5690000.00 | K8: 4090000.00 | L8: 1600000.00 | M8: 0.00 | N8: 0.00 | O8: 0.00 | P8: 0.00 | Q8: 0.00
B9: 2 | E9: 10098320.75 | F9: =F10+F11+F12 -> 4608320.75 | G9: =G10+G11+G12 -> 3821800.75 | H9: =H10+H11+H12 -> 777400.00 | I9: =I10+I11+I12 -> 9120.00 | J9: 5490000.00 | K9: 4090000.00 | L9: 1400000.00 | M9: 0.00 | N9: 0.00 | O9: 0.00 | P9: 0.00 | Q9: 0.00
A10: 208 | B10: 2 | C10: 1 | D10: 行政运行（民政管理事务） | E10: 3026387.00 | F10: 3026387.00 | G10: 3026387.00 | H10: 0.00 | I10: 0.00 | J10: 0.00 | K10: 0.00 | L10: 0.00 | M10: 0.00 | N10: 0.00 | O10: 0.00 | P10: 0.00 | Q10: 0.00
A11: 208 | B11: 2 | C11: 2 | D11: 一般行政管理事务（民政管理事务） | E11: 701400.00 | F11: 701400.00 | G11: 0.00 | H11: 701400.00 | I11: 0.00 | J11: 0.00 | K11: 0.00 | L11: 0.00 | M11: 0.00 | N11: 0.00 | O11: 0.00 | P11: 0.00 | Q11: 0.00
A12: 208 | B12: 2 | C12: 99 | D12: 其他民政管理事务支出 | E12: 6370533.75 | F12: =G12+H12+I12 -> 880533.75 | G12: 795413.75 | H12: 76000.00 | I12: 9120.00 | J12: 5490000.00 | K12: 4090000.00 | L12: 1400000.00 | M12: 0.00 | N12: 0.00 | O12: 0.00 | P12: 0.00 | Q12: 0.00
B13: 5 | E13: 547328.32 | F13: 547328.32 | G13: 547328.32 | H13: 0.00 | I13: 0.00 | J13: 0.00 | K13: 0.00 | L13: 0.00 | M13: 0.00 | N13: 0.00 | O13: 0.00 | P13: 0.00 | Q13: 0.00
A14: 208 | B14: 5 | C14: 5 | D14: 机关事业单位基本养老保险缴费支出 | E14: 547328.32 | F14: 547328.32 | G14: 547328.32 | H14: 0.00 | I14: 0.00 | J14: 0.00 | K14: 0.00 | L14: 0.00 | M14: 0.00 | N14: 0.00 | O14: 0.00 | P14: 0.00 | Q14: 0.00
B15: 10 | E15: 200000.00 | F15: 0.00 | G15: 0.00 | H15: 0.00 | I15: 0.00 | J15: 200000.00 | K15: 0.00 | L15: 200000.00 | M15: 0.00 | N15: 0.00 | O15: 0.00 | P15: 0.00 | Q15: 0.00
A16: 208 | B16: 10 | C16: 6 | D16: 养老服务 | E16: 200000.00 | F16: 0.00 | G16: 0.00 | H16: 0.00 | I16: 0.00 | J16: 200000.00 | K16: 0.00 | L16: 200000.00 | M16: 0.00 | N16: 0.00 | O16: 0.00 | P16: 0.00 | Q16: 0.00
A17: 221 | E17: 382096.24 | F17: 382096.24 | G17: 382096.24 | H17: 0.00 | I17: 0.00 | J17: 0.00 | K17: 0.00 | L17: 0.00 | M17: 0.00 | N17: 0.00 | O17: 0.00 | P17: 0.00 | Q17: 0.00
B18: 2 | E18: 382096.24 | F18: 382096.24 | G18: 382096.24 | H18: 0.00 | I18: 0.00 | J18: 0.00 | K18: 0.00 | L18: 0.00 | M18: 0.00 | N18: 0.00 | O18: 0.00 | P18: 0.00 | Q18: 0.00
A19: 221 | B19: 2 | C19: 1 | D19: 住房公积金 | E19: 382096.24 | F19: 382096.24 | G19: 382096.24 | H19: 0.00 | I19: 0.00 | J19: 0.00 | K19: 0.00 | L19: 0.00 | M19: 0.00 | N19: 0.00 | O19: 0.00 | P19: 0.00 | Q19: 0.00

Sheet 经费拨款（政府预算）
A2: 一般公共预算拨款--经费拨款预算表(按政府预算经济分类)
A3: 单位名称：临湘市民政局机关 临湘市社会福利中心 临湘市救助站 | Q3: 单位：元
A4: 功能科目 | D4: 功能科目 | E4: 总计 | F4: 机关工资福利支出 | G4: 机关商品和服务支出 | H4: 机关资本性支出（一） | I4: 机关资本性支出（二） | J4: 对事业单位经常性补助 | K4: 对事业单位资本性补助 | L4: 对企业补助 | M4: 对企业资本性支出 | N4: 对个人和家庭的补助 | O4: 对社会保障基金补助 | P4: 债务利息及费用支出 | Q4: 其他支出
A5: 类 | B5: 款 | C5: 项
D7: 合计 | E7: =E8+E17 -> 11227745.31 | F7: 4403561.12 | G7: 4841400.00 | H7: 0.00 | I7: 0.00 | J7: 373664.19 | K7: 0.00 | L7: 0.00 | M7: 0.00 | N7: 1609120.00 | O7: 0.00 | P7: 0.00 | Q7: 0.00
A8: 208 | E8: =E9+E13+E15 -> 10845649.07 | F8: 4041970.24 | G8: 4841400.00 | H8: 0.00 | I8: 0.00 | J8: 353158.83 | K8: 0.00 | L8: 0.00 | M8: 0.00 | N8: 1609120.00 | O8: 0.00 | P8: 0.00 | Q8: 0.00
B9: 02 | E9: =SUM(E10:E12) -> 10098320.75 | F9: 3535582.40 | G9: 4841400.00 | H9: 0.00 | I9: 0.00 | J9: 312218.35 | K9: 0.00 | L9: 0.00 | M9: 0.00 | N9: 1409120.00 | O9: 0.00 | P9: 0.00 | Q9: 0.00
A10: 208 | B10: 02 | C10: 01 | D10: 行政运行（民政管理事务） | E10: =F10 -> 3026387.00 | F10: 3026387.00 | G10: 0.00 | H10: 0.00 | I10: 0.00 | J10: 0.00 | K10: 0.00 | L10: 0.00 | M10: 0.00 | N10: 0.00 | O10: 0.00 | P10: 0.00 | Q10: 0.00
A11: 208 | B11: 02 | C11: 02 | D11: 一般行政管理事务（民政管理事务） | E11: 701400.00 | F11: 0.00 | G11: 701400.00 | H11: 0.00 | I11: 0.00 | J11: 0.00 | K11: 0.00 | L11: 0.00 | M11: 0.00 | N11: 0.00 | O11: 0.00 | P11: 0.00 | Q11: 0.00
A12: 208 | B12: 02 | C12: 99 | D12: 其他民政管理事务支出 | E12: =SUM(F12:N12) -> 6370533.75 | F12: 509195.40 | G12: 4140000.00 | H12: 0.00 | I12: 0.00 | J12: 312218.35 | K12: 0.00 | L12: 0.00 | M12: 0.00 | N12: 1409120.00 | O12: 0.00 | P12: 0.00 | Q12: 0.00
B13: 05 | E13: =F13+J13 -> 547328.32 | F13: 506387.84 | G13: 0.00 | H13: 0.00 | I13: 0.00 | J13: 40940.48 | K13: 0.00 | L13: 0.00 | M13: 0.00 | N13: 0.00 | O13: 0.00 | P13: 0.00 | Q13: 0.00
A14: 208 | B14: 05 | C14: 05 | D14: 机关事业单位基本养老保险缴费支出 | E14: =F14+J14 -> 547328.32 | F14: 506387.84 | G14: 0.00 | H14: 0.00 | I14: 0.00 | J14: 40940.48 | K14: 0.00 | L14: 0.00 | M14: 0.00 | N14: 0.00 | O14: 0.00 | P14: 0.00 | Q14: 0.00
B15: 10 | E15: 200000.00 | F15: 0.00 | G15: 0.00 | H15: 0.00 | I15: 0.00 | J15: 0.00 | K15: 0.00 | L15: 0.00 | M15: 0.00 | N15: 200000.00 | O15: 0.00 | P15: 0.00 | Q15: 0.00
A16: 208 | B16: 10 | C16: 06 | D16: 养老服务 | E16: 200000.00 | F16: 0.00 | G16: 0.00 | H16: 0.00 | I16: 0.00 | J16: 0.00 | K16: 0.00 | L16: 0.00 | M16: 0.00 | N16: 200000.00 | O16: 0.00 | P16: 0.00 | Q16: 0.00
A17: 221 | E17: =F17+J17 -> 382096.24 | F17: 361590.88 | G17: 0.00 | H17: 0.00 | I17: 0.00 | J17: 20505.36 | K17: 0.00 | L17: 0.00 | M17: 0.00 | N17: 0.00 | O17: 0.00 | P17: 0.00 | Q17: 0.00
B18: 02 | E18: =F18+J18 -> 382096.24 | F18: 361590.88 | G18: 0.00 | H18: 0.00 | I18: 0.00 | J18: 20505.36 | K18: 0.00 | L18: 0.00 | M18: 0.00 | N18: 0.00 | O18: 0.00 | P18: 0.00 | Q18: 0.00
A19: 221 | B19: 02 | C19: 01 | D19: 住房公积金 | E19: =F19+J19 -> 382096.24 | F19: 361590.88 | G19: 0.00 | H19: 0.00 | I19: 0.00 | J19: 20505.36 | K19: 0.00 | L19: 0.00 | M19: 0.00 | N19: 0.00 | O19: 0.00 | P19: 0.00 | Q19: 0.00

Sheet 专项
A2: 专项资金预算汇总表
A3: 单位名称：临湘市民政局机关 临湘市社会福利中心 临湘市救助站 | I3: 单位：元
A4: 项目名称 | B4: 总计 | C4: 一般预算拨款 | E4: 纳入专户管理的非税收入拨款 | F4: 政府性基金拨款 | G4: 事业单位经营服务收入 | H4: 上级补助收入 | I4: 其他收入
C5: 经费拨款 | D5: 纳入预算管理的非税收入拨款
B6: =SUM(B7:B12) -> 5702954.04 | C6: 5690000.00 | D6: 0.00 | E6: 0.00 | F6: 0.00 | G6: =G8+G12 -> 12954.04 | H6: 0.00 | I6: 0.00
A7: 民政管理业务经费 | B7: 2090000.00 | C7: 2090000.00 | D7: 0.00 | E7: 0.00 | F7: 0.00 | G7: 0.00 | H7: 0.00 | I7: 0.00
A8: 其他农村生活补助 | B8: 400698.04 | C8: 400000.00 | D8: 0.00 | E8: 0.00 | F8: 0.00 | G8: 698.04 | H8: 0.00 | I8: 0.00
A9: 农村五保供养配套经费 | B9: 1000000.00 | C9: 1000000.00 | D9: 0.00 | E9: 0.00 | F9: 0.00 | G9: 0.00 | H9: 0.00 | I9: 0.00
A10: 城乡低保配套工作经费 | B10: 2000000.00 | C10: 2000000.00 | D10: 0.00 | E10: 0.00 | F10: 0.00 | G10: 0.00 | H10: 0.00 | I10: 0.00
A11: 基本养老服务补贴 | B11: 200000.00 | C11: 200000.00 | D11: 0.00 | E11: 0.00 | F11: 0.00 | G11: 0.00 | H11: 0.00 | I11: 0.00
A12: 征收成本 | B12: 12256.00 | C12: 0.00 | D12: 0.00 | E12: 0.00 | F12: 0.00 | G12: 12256.00 | H12: 0.00 | I12: 0.00

Sheet 三公
A1: 一般公共预算“三公”经费预算表
A2: 单位名称：临湘市民政局机关 临湘市社会福利中心 临湘市救助站 | G2: 单位：元
A3: 单位名称 | B3: 三公经费预算数(一般公共预算拨款)
B4: 小计 | C4: 公务接待费 | D4: 公务用车购置及运行费 | E4: 其中： | G4: 因公出国(境)费用
E5: 公务用车购置费 | F5: 公务用车运行维护费
A6: 合计 | B6: 310000.00 | C6: 280000.00 | D6: 30000.00 | E6: 0.00 | F6: 30000.00 | G6: 0.00
B7: =SUM(B8:B10) -> 310000.00 | C7: =SUM(C8:C10) -> 280000.00 | D7: =SUM(D8:D10) -> 30000.00 | E7: =SUM(E8:E10) -> 0.00 | F7: =SUM(F8:F10) -> 30000.00 | G7: 0.00
A8: 临湘市民政局机关 | B8: 260000.00 | C8: 260000.00 | D8: 0.00 | E8: 0.00 | F8: 0.00 | G8: 0.00
A9: 临湘市社会福利院 | B9: 10000.00 | C9: 10000.00 | D9: 0.00 | E9: 0.00 | F9: 0.00 | G9: 0.00
A10: 临湘市救助管理站 | B10: 40000.00 | C10: 10000.00 | D10: 30000.00 | E10: 0.00 | F10: 30000.00 | G10: 0.00

Sheet 绩效目标整体申报
A1: 整体支出绩效目标申报表
A2: 单位名称：临湘市民政局机关 临湘市社会福利中心 临湘市救助站 | V2: 单位：万元
A3: 单位编码 | B3: 单位名称 | C3: 预算绩效管理联络员 | D3: 联系电话 | E3: 人员编制数 | F3: 实有人数 | G3: 单位职能 | H3: 单位年度收入预算（万元） | M3: 单位年度支出预算（万元） | T3: 部门整体支出年度绩效目标 | U3: 其他说明的问题 | V3: 财政部门审核意见
H4: 收入合计 | I4: 公共财政拨款 | J4: 政府性基金拨款 | K4: 非税收入拨款 | L4: 其他拨款 | M4: 支出合计 | N4: 基本支出 | O4: 项目支出 | P4: 其中三公经费预算（万元） | Q4: 公务用车运行和购置费 | R4: 公务接待费 | S4: 因公出国（境）费
A5: ** | B5: ** | C5: ** | D5: ** | E5: 1 | F5: 2 | G5: 3 | H5: 4 | I5: 5 | J5: 6 | K5: 7 | L5: 8 | M5: 9 | N5: 10 | O5: 11 | P5: 12 | Q5: 13 | R5: 14 | S5: 15 | T5: 16 | U5: 17 | V5: 18
A6: 503002 | B6: 临湘市社会福利院 | C6: 李满秀 | D6: 3731138 | E6: 5 | F6: 5 | G6: 提供福利服务，负责社会上的孤儿和弃婴的收养和抚养工作。 | H6: 48.36 | I6: 37.36 | J6: 0.00 | K6: 11.00 | L6: 0.00 | M6: 48.36 | N6: 48.09 | O6: 0.27 | P6: 1.00 | Q6: 0.00 | R6: 1.00 | S6: 0.00
A7: 503003 | B7: 临湘市救助管理站 | D7: 3802500 | E7: 12 | F7: 12 | G7: 提供救助服务 | H7: 106.86 | I7: 66.86 | J7: 0.00 | K7: 40.00 | L7: 0.00 | M7: 106.86 | N7: 105.91 | O7: 0.95 | P7: 4.00 | Q7: 3.00 | R7: 1.00 | S7: 0.00
A8: 503001 | B8: 临湘市民政局机关 | C8: 李倩 | D8: 3751689 | E8: 42 | F8: 50 | G8: 负责全市社会救助、社会福利事业发展、基层政权建设、社会组织管理、殡葬改革、婚姻登记、福利彩票发行等民生保障和社会事务管理工作，服务城乡低保、城乡特困救助、重点优抚、精简退职、投诚起义、孤儿等主要民政对象26000多人。 | H8: 1,086.55 | I8: 1,018.55 | J8: 0.00 | K8: 68.00 | L8: 0.00 | M8: 1,086.55 | N8: 517.48 | O8: 569.07 | P8: 26.00 | Q8: 0.00 | R8: 26.00 | S8: 0.00 | T8: 负责全市社会救助、社会福利事业发展、基层政权建设、社会组织管理、殡葬改革、婚姻登记、福利彩票发行等民生保障和社会事务管理工作，服务城乡低保、城乡特困救助、重点优抚、精简退职、投诚起义、孤儿等主要民政对象26000多人。服务于全市民政对象，维护民政事业发展。

Sheet 项目绩效目标申报表
A2: 项 目 绩 效 目 标 申 报 表
A3: 单位名称：临湘市民政局机关 临湘市社会福利中心 临湘市救助站
A4: 单位编码 | B4: 单位名称 | C4: 主管部门 | D4: 项目起止时间 | E4: 项目属性 | F4: 项目类型 | G4: 项目负责人 | H4: 联系电话 | I4: 项目概况 | J4: 项目立项依据 | K4: 项目资金情况 | V4: 单位已有（或拟定）保证项目实施的制度与措施 | W4: 绩效目标 | AZ4: 其他说明的问题 | BA4: 财政部门审核意见
K5: 项目资金申请 | S5: 支出明细预算 | W5: 长期目标 | X5: 年度目标 | Y5: 产出指标 | AK5: 效益指标
K6: 市级资金 | M6: 省级资金 | O6: 中央资金 | Q6: 自有资金 | S6: 上年度安排资金 | T6: 本年度申请资金 | U6: 测算依据及说明 | Y6: 数量指标 | AB6: 质量指标 | AE6: 时效指标 | AH6: 成本指标 | AK6: 经济效益指标 | AN6: 社会效益指标 | AQ6: 生态效益指标 | AT6: 可持续指标 | AW6: 社会公众或服务对象满意度
K7: 上年度安排资金（市级） | L7: 本年度申请资金（市级） | M7: 上年度安排资金（省级） | N7: 本年度申请资金（省级） | O7: 上年度安排资金（中央） | P7: 本年度申请资金（中央） | Q7: 上年度安排资金（自有） | R7: 本年度申请资金（自有） | Y7: 指标内容（数量） | Z7: 指标值（数量） | AA7: 备注（数量） | AB7: 指标内容（质量） | AC7: 指标值（质量） | AD7: 备注（质量） | AE7: 指标内容（时效） | AF7: 指标值（时效） | AG7: 备注（时效） | AH7: 指标内容（成本） | AI7: 指标值（成本） | AJ7: 备注（成本） | AK7: 指标内容（经济） | AL7: 指标值（经济） | AM7: 备注（经济） | AN7: 指标内容（社会） | AO7: 指标值（社会） | AP7: 备注（社会） | AQ7: 指标内容（生态） | AR7: 指标值（生态） | AS7: 备注（生态） | AT7: 指标内容（可持续） | AU7: 指标值（可持续） | AV7: 备注（可持续） | AW7: 指标内容 | AX7: 指标值 | AY7: 备注
A9: ** | B9: ** | C9: ** | D9: ** | E9: ** | F9: ** | G9: ** | H9: ** | I9: ** | J9: ** | K9: 1 | L9: 2 | M9: 3 | N9: 4 | O9: 5 | P9: 6 | Q9: 7 | R9: 8 | S9: 9 | T9: 10 | U9: 11 | V9: 12 | W9: 13 | X9: 14 | Y9: 15 | Z9: 16 | AA9: 17 | AB9: 18 | AC9: 19 | AD9: 20 | AE9: 21 | AF9: 22 | AG9: 23 | AH9: 24 | AI9: 25 | AJ9: 26 | AK9: 27 | AL9: 28 | AM9: 29 | AN9: 30 | AO9: 31 | AP9: 32 | AQ9: 33 | AR9: 34 | AS9: 35 | AT9: 36 | AU9: 37 | AV9: 38 | AW9: 39 | AX9: 40 | AY9: 41
B10: 合计 | K10: 5,850,000.00 | L10: 5,490,000.00 | M10: 0.00 | N10: 0.00 | O10: 0.00 | P10: 0.00 | Q10: 0.00 | R10: 0.00 | S10: 5,850,000.00 | T10: 5,490,000.00
A11: 503001 | B11: 临湘市民政局机关 | C11: 社保股 | D11: 2020年1-12月 | E11: 延续项目 | F11: 其他专项类 | G11: 汪卫红 | H11: 3751689 | I11: 用于民政工作日常业务经费，包括办公费、差旅费、会议费、培训费、维修费等 | J11: 依据社会救助工作管理条例，五保供养管理条例等相关法律法规，文件，开展社会救助等各项工作需要支出办公费、印刷费、差旅费、会议费、培训费等各项费用。 | K11: 2,450,000.00 | L11: 2,090,000.00 | M11: 0.00 | N11: 0.00 | O11: 0.00 | P11: 0.00 | Q11: 0.00 | R11: 0.00 | S11: 2,450,000.00 | T11: 2,090,000.00 | U11: 依据社会救助工作管理条例，五保供养管理条例等相关法律法规，文件，开展社会救助等各项工作需要支出办公费、印刷费、差旅费、会议费、培训费等各项费用。 | V11: 依据社会救助工作管理条例，五保供养管理条例等相关法律法规，文件，开展社会救助等各项工作需要支出办公费、印刷费、差旅费、会议费、培训费等各项费用。 | W11: 服务于全市民政对象，保障全市民政工作顺利开展。 | X11: 服务于全市民政对象，保障全市民政工作顺利开展。 | Y11: 严格按预算执行 | AB11: 取得较好成绩 | AE11: 按月、季推进各项工作计划 | AH11: 厉行节约，充分发挥资金效益 | AK11: 较好 | AL11: 98% | AN11: 较好 | AO11: 98% | AQ11: 较好 | AR11: 98% | AT11: 较好 | AU11: 98% | AW11: 较好 | AX11: 98%
A12: 503001 | B12: 临湘市民政局机关 | C12: 社保股 | D12: 2020年1-12月 | E12: 延续项目 | F12: 其他专项类 | G12: 汪卫红 | H12: 3751689 | I12: 为保障其他农村生活提供的补助，包括精简退职、投诚起义对象的保障性补助支出 | J12: 依据关于提高六十年代精简退职老职工生活救助补助标准的通知等相关法律法规，文件。 | K12: 400,000.00 | L12: 400,000.00 | M12: 0.00 | N12: 0.00 | O12: 0.00 | P12: 0.00 | Q12: 0.00 | R12: 0.00 | S12: 400,000.00 | T12: 400,000.00 | U12: 依据关于提高六十年代精简退职老职工生活救助补助标准的通知等相关法律法规，文件。 | V12: 依据关于提高六十年代精简退职老职工生活救助补助标准的通知等相关法律法规，文件。 | W12: 服务于全市民政对象，保障全市民政工作顺利开展。 | X12: 服务于全市民政对象，保障全市民政工作顺利开展。 | Y12: 严格按预算执行 | AB12: 取得较好成绩 | AE12: 按月、季推进各项工作计划 | AH12: 厉行节约，充分发挥资金效益 | AK12: 较好 | AL12: 98% | AN12: 较好 | AO12: 98% | AQ12: 较好 | AR12: 98% | AT12: 较好 | AU12: 98% | AW12: 较好 | AX12: 98%
A13: 503001 | B13: 临湘市民政局机关 | C13: 社保股 | D13: 2020年1-12月 | E13: 延续项目 | F13: 其他专项类 | G13: 汪卫红 | H13: 3751689 | I13: 用于全市五保户的生活困难及其他补助 | J13: 依据五保供养管理条例等相关法律法规，文件。 | K13: 1,000,000.00 | L13: 1,000,000.00 | M13: 0.00 | N13: 0.00 | O13: 0.00 | P13: 0.00 | Q13: 0.00 | R13: 0.00 | S13: 1,000,000.00 | T13: 1,000,000.00 | U13: 依据五保供养管理条例等相关法律法规，文件。 | V13: 依据五保供养管理条例等相关法律法规，文件。 | W13: 服务于全市民政对象，保障全市民政工作顺利开展。 | X13: 服务于全市民政对象，保障全市民政工作顺利开展。 | Y13: 严格按预算执行 | AB13: 取得较好成绩 | AE13: 按月、季推进各项工作计划 | AH13: 厉行节约，充分发挥资金效益 | AK13: 较好 | AL13: 98% | AN13: 较好 | AO13: 98% | AQ13: 较好 | AR13: 98% | AT13: 较好 | AU13: 98% | AW13: 较好 | AX13: 98%
A14: 503001 | B14: 临湘市民政局机关 | C14: 社保股 | D14: 2020年1月-12月 | E14: 延续项目 | F14: 其他专项类 | G14: 汪卫红 | H14: 3751689 | I14: 用于全市城乡低保工作经费，包括办公费、印刷费等支出 | J14: 社会救助工作管理条例等相关法律法规，文件。 | K14: 2,000,000.00 | L14: 2,000,000.00 | M14: 0.00 | N14: 0.00 | O14: 0.00 | P14: 0.00 | Q14: 0.00 | R14: 0.00 | S14: 2,000,000.00 | T14: 2,000,000.00 | U14: 社会救助工作管理条例等相关法律法规，文件。 | V14: 社会救助工作管理条例等相关法律法规，文件。 | W14: 服务于全市民政对象，保障全市民政工作顺利开展。 | X14: 服务于全市民政对象，保障全市民政工作顺利开展。 | Y14: 严格按预算执行 | AB14: 取得较好成绩 | AE14: 按月、季推进各项工作计划 | AH14: 厉行节约，充分发挥资金效益 | AK14: 较好 | AL14: 98% | AN14: 较好 | AO14: 98% | AQ14: 较好 | AR14: 98% | AT14: 较好 | AU14: 98% | AW14: 较好 | AX14: 98%
BB19: 0 | BC19: 0

Sheet 5-政府采购预算表的复制
O1: 录入05表
A2: 2020年部门预算政府采购预算表
A3: 单位名称：临湘市民政局机关 临湘市社会福利中心 临湘市救助站 | O3: 单位：元
A4: 单位编码 | B4: 单位名称 | C4: 类别 | D4: 采购项目 | E4: 采购品目 | F4: 采购数量 | G4: 计量单位 | H4: 总计 | I4: 经费拨款 | J4: 纳入预算管理的非税收入 | K4: 纳入专户管理的非税收入 | L4: 政府性基金 | M4: 上级补助收入 | N4: 其他收入 | O4: 提前下达
B6: 合计 | F6: 0 | H6: 600,000.00 | I6: 600,000.00 | J6: 0.00 | K6: 0.00 | L6: 0.00 | M6: 0.00 | N6: 0.00 | O6: 0.00
B7: 临湘市民政局机关 | F7: 0 | H7: 600,000.00 | I7: 600,000.00 | J7: 0.00 | K7: 0.00 | L7: 0.00 | M7: 0.00 | N7: 0.00 | O7: 0.00
A8: 503001 | B8: 临湘市民政局机关 | C8: 工程类 | D8: 民政管理业务经费 | E8: 房屋修缮 | F8: 0 | H8: 300,000.00 | I8: 300,000.00 | J8: 0.00 | K8: 0.00 | L8: 0.00 | M8: 0.00 | N8: 0.00 | O8: 0.00
A9: 503001 | B9: 临湘市民政局机关 | C9: 货物类 | D9: 民政管理业务经费 | E9: 纸制品纸制文具及办公用品卫生用纸制品 | F9: 0 | H9: 300,000.00 | I9: 300,000.00 | J9: 0.00 | K9: 0.00 | L9: 0.00 | M9: 0.00 | N9: 0.00 | O9: 0.00

Sheet 绩效目标-附表
A1: 绩效目标申报表-附表
E2: 单位：万元
A3: 单位名称 | B3: 项目名称 | C3: 预算人数及其他 | D3: 标准或依据 | E3: 金额(万元)
A4: 临湘市民政局机关 | B4: 工资福利支出 | C4: 民政局共66人，其中：全额拨款53人，自收自支13人。领取遗属补助2人。 | D4: 临财预【2019】57号 | E4: 574.93
A5: 临湘市民政局机关 | B5: 商品和服务支出 | C5: 民政局共66人，其中：全额拨款53人，自收自支13人。领取遗属补助2人。 | D5: 临财预【2019】57号 | E5: 95.64
A6: 临湘市民政局机关 | B6: 对个人和家庭的补助 | C6: 民政局共66人，其中：全额拨款53人，自收自支13人。领取遗属补助2人。 | D6: 临财预【2019】57号 | E6: 0.91
A7: 临湘市民政局机关 | B7: 城乡低保配套工作经费 | C7: 我市现有城市低保对象1563户，3072人，农村低保对象2773户，5870人 | D7: 用于我市城乡低保救助工作所需办公费、印刷费、差旅费、培训费、会议费等各项工作经费 | E7: 200.00
A8: 临湘市民政局机关 | B8: 其他农村生活补助 | C8: 我市现有精简退职和投诚起义人数共681人 | D8: 上世纪六十年代精简退职对象生活补助，投诚起义人员生活补助，681人，发放标准为50元/月.人，全年共需资金40.86万元 | E8: 40.07
A9: 临湘市民政局机关 | B9: 管理业务经费 | C9: 责全市社会救助、社会福利事业发展、基层政权建设、社会组织管理、殡葬改革、婚姻登记、福利彩票发行等民生保障和社会事务管理工作，服务城乡低保、城乡特困救助、精简退职、投诚起义、孤儿等主要民政对象26000多人。 | D9: 用于全市社会救助、婚姻登记、社会事务、基层政权建设、殡葬改革、慈善捐赠、孤儿弃婴收养、流浪乞讨人员救助等民政专项工作经费。 | E9: 209.00
A10: 临湘市民政局机关 | B10: 基本养老服务补贴 | C10: 我市有60岁以上失能、半失能老年人2382人 | D10: 我市有60岁以上失能、半失能老年人2380人，按360元/年.人的标准，全年应发放基本养老服务补贴85.6万元，本级财政配套20万元，其余资金从困难群众生活救助补助资金中支出。 | E10: 20.00
A11: 临湘市民政局机关 | B11: 城乡特困供养配套经费 | C11: 我市现有城市特困供养对象172人，农村特困供养对象2216人 | D11: 我市现有城乡特困供养人员2388人，年需特困供养经费1578.7万元。 | E11: 100.00
A12: 临湘市民政局机关 | B12: 征收成本 | C12: 民政局共66人，其中：全额拨款53人，自收自支13人。领取遗属补助2人。 | D12: 临财预【2019】57号 | E12: 1.23
